{"text_format":"1","workbook":"xlsx","n_sheets":4,"sheets":["Produktionsanlæg","Distributionsanlæg","Fællesfunktionsanlæg","Drop downliste"],"not_rendered":{"charts":0,"images":0,"macros":1,"external_links":0,"defined_names":2,"comments":0,"pivot_tables":0},"unopened":[],"bounds":{"document_bytes":16777216,"sheet_cells":100000,"rows_first":2000,"rows_last":500,"rows_between":2000,"halvings":0,"cell_chars":16384,"cell_head_chars":4096},"cells_cut":0,"cells_raw":0,"read":"whole","date_system":"1900"}

{"sheet":"Produktionsanlæg","index":0,"n_rows":1990,"n_cols":6,"rows_kept":1990,"cut":false,"hidden":false,"merged":[[0,5,1,5],[0,0,1,0],[0,1,1,1],[0,2,1,2],[0,3,1,3],[0,4,1,4]]}
["Produktionsanlæg","Enhed","Standard-levetid","Samlet mængde per 31/12-2014","Samlet mængde per 31/12-2015","Bemærk-ninger"]
[]
["Renseanlæg 1"]
["Mindre renseanlæg"]
["Mindre renseanlæg < 5.000 PE uden mulighed for opdeling","PE",40,{"$f":"4500-4500","v":0},null,"Nedlagt"]
["Renseanlæg >= 5.000 PE, Vandbehandling",null,null,0]
["Indløb med riste, Konstruktioner","PE",60,0]
["Indløb med riste, Mek/EL","PE",20,0]
["Indløb med riste, SRO","PE",10,0]
["Sand- og fedtfang, Kontruktioner","PE",60,0]
["Sand- og fedtfang, Mek/EL","PE",20,0]
["Sand- og fedtfang, SRO","PE",10,0]
["Forklaring, Konstruktioner","PE",60,0]
["Forklaring, Mek/EL","PE",20,0]
["Forklaring, SRO","PE",10,0]
["Beluftningstanke, Konstruktioner","PE",60,0]
["Beluftningstanke, Mek/EL","PE",20,0]
["Beluftningstanke, SRO","PE",10,0]
["Efterklaringstanke, Konstruktioner","PE",60,0]
["Efterklaringstanke, Mek/El","PE",20,0]
["Efterklaringstanke, SRO","PE",10,0]
["Efterbehandlingsanlæg (sandfilter), Konstruktioner","PE",60,0]
["Efterbehandlingsanlæg (sandfilter), Mek/EL","PE",20,0]
["Efterbehandlingsanlæg (sandfilter), SRO","PE",10,0]
["Renseanlæg >= 5.000 PE, Slambehandling",null,null,0]
["Forafvanding, slam, Konstruktion","PE",60,0]
["Forafvanding, slam, Mek/EL","PE",20,0]
["Forafvanding, slam, SRO","PE",10,0]
["Rådnetanke, slam, Konstruktioner","PE",60,0]
["Rådnetanke, slam, Mek/EL","PE",20,0]
["Rådnetanke, slam, SRO","PE",10,0]
["Gasdisponering, Konstruktioner","PE",60,0]
["Gasdisponering, Mek/EL","PE",20,0]
["Gasdisponering, SRO","PE",10,0]
["Gasdisponering - elproduktionsanlæg, Konstruktioner","PE",60,0]
["Gasdisponering - elproduktionsanlæg, Mek/EL","PE",20,0]
["Gasdisponering - elproduktionsanlæg, SRO","PE",10,0]
["Slutafvanding, slam - lavteknologisk (slambede), Konstruktioner","PE",60,0]
["Slutafvanding, slam - lavteknologisk (slambede), Mek/EL","PE",20,0]
["Slutafvanding, slam - lavteknologisk (slambede), SRO","PE",10,0]
["Slutafvanding, slam - højteknologisk (centrifuger), Konstruktioner","PE",60,0]
["Slutafvanding, slam - højteknologisk (centrifuger), Mek/El","PE",20,0]
["Slutafvanding, slam - højteknologisk (centrifuger), SRO","PE",10,0]
["Renseanlæg >= 5.000 PE, Slamdisponering",null,null,0]
["Slutdisponering, slam - lavteknologisk (slammineralisering), Konstruktioner","PE",60,0]
["Slutdisponering, slam - lavteknologisk (slammineralisering), Mek/EL","PE",20,0]
["Slutdisponering, slam - lavteknologisk (slammineralisering), SRO","PE",10,0]
["Slutdisponering, slam - højteknologisk (slamtørring), Konstruktioner","PE",60,0]
["Slutdisponering, slam - højteknologisk (slamtørring), Mek/EL","PE",20,0]
["Slutdisponering, slam - højteknologisk (slamtørring), SRO","PE",10,0]
["Slutdisponering, slam - højteknologisk (slamtørring og -forbrænding), Konstruktioner","PE",60,0]
["Slutdisponering, slam - højteknologisk (slamtørring og -forbrænding), Mek/EL","PE",20,0]
["Slutdisponering, slam - højteknologisk (slamtørring og -forbrænding), SRO","PE",10,0]
["Renseanlæg 2"]
["Mindre renseanlæg"]
["Mindre renseanlæg < 5.000 PE uden mulighed for opdeling","PE",40,0]
["Renseanlæg >= 5.000 PE, Vandbehandling",null,null,0]
["Indløb med riste, Konstruktioner","PE",60,16000,16000]
["Indløb med riste, Mek/EL","PE",20,16000,16000]
["Indløb med riste, SRO","PE",10,16000,16000]
["Sand- og fedtfang, Kontruktioner","PE",60,16000,16000]
["Sand- og fedtfang, Mek/EL","PE",20,16000,16000]
["Sand- og fedtfang, SRO","PE",10,16000,16000]
["Forklaring, Konstruktioner","PE",60,0]
["Forklaring, Mek/EL","PE",20,0]
["Forklaring, SRO","PE",10,0]
["Beluftningstanke, Konstruktioner","PE",60,16000,16000]
["Beluftningstanke, Mek/EL","PE",20,16000,16000]
["Beluftningstanke, SRO","PE",10,16000,16000]
["Efterklaringstanke, Konstruktioner","PE",60,16000,16000]
["Efterklaringstanke, Mek/El","PE",20,16000,16000]
["Efterklaringstanke, SRO","PE",10,16000,16000]
["Efterbehandlingsanlæg (sandfilter), Konstruktioner","PE",60,0]
["Efterbehandlingsanlæg (sandfilter), Mek/EL","PE",20,0]
["Efterbehandlingsanlæg (sandfilter), SRO","PE",10,0]
["Renseanlæg >= 5.000 PE, Slambehandling",null,null,0]
["Forafvanding, slam, Konstruktion","PE",60,0]
["Forafvanding, slam, Mek/EL","PE",20,0]
["Forafvanding, slam, SRO","PE",10,0]
["Rådnetanke, slam, Konstruktioner","PE",60,0]
["Rådnetanke, slam, Mek/EL","PE",20,0]
["Rådnetanke, slam, SRO","PE",10,0]
["Gasdisponering, Konstruktioner","PE",60,0]
["Gasdisponering, Mek/EL","PE",20,0]
["Gasdisponering, SRO","PE",10,0]
["Gasdisponering - elproduktionsanlæg, Konstruktioner","PE",60,0]
["Gasdisponering - elproduktionsanlæg, Mek/EL","PE",20,0]
["Gasdisponering - elproduktionsanlæg, SRO","PE",10,0]
["Slutafvanding, slam - lavteknologisk (slambede), Konstruktioner","PE",60,0]
["Slutafvanding, slam - lavteknologisk (slambede), Mek/EL","PE",20,0]
["Slutafvanding, slam - lavteknologisk (slambede), SRO","PE",10,0]
["Slutafvanding, slam - højteknologisk (centrifuger), Konstruktioner","PE",60,0]
["Slutafvanding, slam - højteknologisk (centrifuger), Mek/El","PE",20,0]
["Slutafvanding, slam - højteknologisk (centrifuger), SRO","PE",10,0]
["Renseanlæg >= 5.000 PE, Slamdisponering",null,null,0]
["Slutdisponering, slam - lavteknologisk (slammineralisering), Konstruktioner","PE",60,0]
["Slutdisponering, slam - lavteknologisk (slammineralisering), Mek/EL","PE",20,0]
["Slutdisponering, slam - lavteknologisk (slammineralisering), SRO","PE",10,0]
["Slutdisponering, slam - højteknologisk (slamtørring), Konstruktioner","PE",60,0]
["Slutdisponering, slam - højteknologisk (slamtørring), Mek/EL","PE",20,0]
["Slutdisponering, slam - højteknologisk (slamtørring), SRO","PE",10,0]
["Slutdisponering, slam - højteknologisk (slamtørring og -forbrænding), Konstruktioner","PE",60,0]
["Slutdisponering, slam - højteknologisk (slamtørring og -forbrænding), Mek/EL","PE",20,0]
["Slutdisponering, slam - højteknologisk (slamtørring og -forbrænding), SRO","PE",10,0]
["Renseanlæg 3"]
["Mindre renseanlæg"]
["Mindre renseanlæg < 5.000 PE uden mulighed for opdeling","PE",40,0]
["Renseanlæg >= 5.000 PE, Vandbehandling",null,null,0]
["Indløb med riste, Konstruktioner","PE",60,7000,7000]
["Indløb med riste, Mek/EL","PE",20,7000,7000]
["Indløb med riste, SRO","PE",10,7000,7000]
["Sand- og fedtfang, Kontruktioner","PE",60,7000,7000]
["Sand- og fedtfang, Mek/EL","PE",20,7000,7000]
["Sand- og fedtfang, SRO","PE",10,7000,7000]
["Forklaring, Konstruktioner","PE",60,0,0]
["Forklaring, Mek/EL","PE",20,0,0]
["Forklaring, SRO","PE",10,0,0]
["Beluftningstanke, Konstruktioner","PE",60,7000,7000]
["Beluftningstanke, Mek/EL","PE",20,7000,7000]
["Beluftningstanke, SRO","PE",10,7000,7000]
["Efterklaringstanke, Konstruktioner","PE",60,7000,7000]
["Efterklaringstanke, Mek/El","PE",20,7000,7000]
["Efterklaringstanke, SRO","PE",10,7000,7000]
["Efterbehandlingsanlæg (sandfilter), Konstruktioner","PE",60,0,0]
["Efterbehandlingsanlæg (sandfilter), Mek/EL","PE",20,0,0]
["Efterbehandlingsanlæg (sandfilter), SRO","PE",10,0,0]
["Renseanlæg >= 5.000 PE, Slambehandling",null,null,0]
["Forafvanding, slam, Konstruktion","PE",60,0]
["Forafvanding, slam, Mek/EL","PE",20,0]
["Forafvanding, slam, SRO","PE",10,0]
["Rådnetanke, slam, Konstruktioner","PE",60,0]
["Rådnetanke, slam, Mek/EL","PE",20,0]
["Rådnetanke, slam, SRO","PE",10,0]
["Gasdisponering, Konstruktioner","PE",60,0]
["Gasdisponering, Mek/EL","PE",20,0]
["Gasdisponering, SRO","PE",10,0]
["Gasdisponering - elproduktionsanlæg, Konstruktioner","PE",60,0]
["Gasdisponering - elproduktionsanlæg, Mek/EL","PE",20,0]
["Gasdisponering - elproduktionsanlæg, SRO","PE",10,0]
["Slutafvanding, slam - lavteknologisk (slambede), Konstruktioner","PE",60,0]
["Slutafvanding, slam - lavteknologisk (slambede), Mek/EL","PE",20,0]
["Slutafvanding, slam - lavteknologisk (slambede), SRO","PE",10,0]
["Slutafvanding, slam - højteknologisk (centrifuger), Konstruktioner","PE",60,0]
["Slutafvanding, slam - højteknologisk (centrifuger), Mek/El","PE",20,0]
["Slutafvanding, slam - højteknologisk (centrifuger), SRO","PE",10,0]
["Renseanlæg >= 5.000 PE, Slamdisponering",null,null,0]
["Slutdisponering, slam - lavteknologisk (slammineralisering), Konstruktioner","PE",60,0]
["Slutdisponering, slam - lavteknologisk (slammineralisering), Mek/EL","PE",20,0]
["Slutdisponering, slam - lavteknologisk (slammineralisering), SRO","PE",10,0]
["Slutdisponering, slam - højteknologisk (slamtørring), Konstruktioner","PE",60,0]
["Slutdisponering, slam - højteknologisk (slamtørring), Mek/EL","PE",20,0]
["Slutdisponering, slam - højteknologisk (slamtørring), SRO","PE",10,0]
["Slutdisponering, slam - højteknologisk (slamtørring og -forbrænding), Konstruktioner","PE",60,0]
["Slutdisponering, slam - højteknologisk (slamtørring og -forbrænding), Mek/EL","PE",20,0]
["Slutdisponering, slam - højteknologisk (slamtørring og -forbrænding), SRO","PE",10,0]
["Renseanlæg 4"]
["Mindre renseanlæg"]
["Mindre renseanlæg < 5.000 PE uden mulighed for opdeling","PE",40,0]
["Renseanlæg >= 5.000 PE, Vandbehandling",null,null,0]
["Indløb med riste, Konstruktioner","PE",60,7000,7000]
["Indløb med riste, Mek/EL","PE",20,7000,7000]
["Indløb med riste, SRO","PE",10,7000,7000]
["Sand- og fedtfang, Kontruktioner","PE",60,7000,7000]
["Sand- og fedtfang, Mek/EL","PE",20,7000,7000]
["Sand- og fedtfang, SRO","PE",10,7000,7000]
["Forklaring, Konstruktioner","PE",60,0,0]
["Forklaring, Mek/EL","PE",20,0,0]
["Forklaring, SRO","PE",10,0,0]
["Beluftningstanke, Konstruktioner","PE",60,7000,7000]
["Beluftningstanke, Mek/EL","PE",20,7000,7000]
["Beluftningstanke, SRO","PE",10,7000,7000]
["Efterklaringstanke, Konstruktioner","PE",60,7000,7000]
["Efterklaringstanke, Mek/El","PE",20,7000,7000]
["Efterklaringstanke, SRO","PE",10,7000,7000]
["Efterbehandlingsanlæg (sandfilter), Konstruktioner","PE",60,0,0]
["Efterbehandlingsanlæg (sandfilter), Mek/EL","PE",20,0,0]
["Efterbehandlingsanlæg (sandfilter), SRO","PE",10,0,0]
["Renseanlæg >= 5.000 PE, Slambehandling",null,null,0]
["Forafvanding, slam, Konstruktion","PE",60,0]
["Forafvanding, slam, Mek/EL","PE",20,0]
["Forafvanding, slam, SRO","PE",10,0]
["Rådnetanke, slam, Konstruktioner","PE",60,0]
["Rådnetanke, slam, Mek/EL","PE",20,0]
["Rådnetanke, slam, SRO","PE",10,0]
["Gasdisponering, Konstruktioner","PE",60,0]
["Gasdisponering, Mek/EL","PE",20,0]
["Gasdisponering, SRO","PE",10,0]
["Gasdisponering - elproduktionsanlæg, Konstruktioner","PE",60,0]
["Gasdisponering - elproduktionsanlæg, Mek/EL","PE",20,0]
["Gasdisponering - elproduktionsanlæg, SRO","PE",10,0]
["Slutafvanding, slam - lavteknologisk (slambede), Konstruktioner","PE",60,0]
["Slutafvanding, slam - lavteknologisk (slambede), Mek/EL","PE",20,0]
["Slutafvanding, slam - lavteknologisk (slambede), SRO","PE",10,0]
["Slutafvanding, slam - højteknologisk (centrifuger), Konstruktioner","PE",60,0]
["Slutafvanding, slam - højteknologisk (centrifuger), Mek/El","PE",20,0]
["Slutafvanding, slam - højteknologisk (centrifuger), SRO","PE",10,0]
["Renseanlæg >= 5.000 PE, Slamdisponering",null,null,0]
["Slutdisponering, slam - lavteknologisk (slammineralisering), Konstruktioner","PE",60,0]
["Slutdisponering, slam - lavteknologisk (slammineralisering), Mek/EL","PE",20,0]
["Slutdisponering, slam - lavteknologisk (slammineralisering), SRO","PE",10,0]
["Slutdisponering, slam - højteknologisk (slamtørring), Konstruktioner","PE",60,0]
["Slutdisponering, slam - højteknologisk (slamtørring), Mek/EL","PE",20,0]
["Slutdisponering, slam - højteknologisk (slamtørring), SRO","PE",10,0]
["Slutdisponering, slam - højteknologisk (slamtørring og -forbrænding), Konstruktioner","PE",60,0]
["Slutdisponering, slam - højteknologisk (slamtørring og -forbrænding), Mek/EL","PE",20,0]
["Slutdisponering, slam - højteknologisk (slamtørring og -forbrænding), SRO","PE",10,0]
["Renseanlæg 5"]
["Mindre renseanlæg"]
["Mindre renseanlæg < 5.000 PE uden mulighed for opdeling","PE",40,0]
["Renseanlæg >= 5.000 PE, Vandbehandling",null,null,0]
["Indløb med riste, Konstruktioner","PE",60,13000,13000]
["Indløb med riste, Mek/EL","PE",20,13000,13000]
["Indløb med riste, SRO","PE",10,13000,13000]
["Sand- og fedtfang, Kontruktioner","PE",60,13000,13000]
["Sand- og fedtfang, Mek/EL","PE",20,13000,13000]
["Sand- og fedtfang, SRO","PE",10,13000,13000]
["Forklaring, Konstruktioner","PE",60,0,0]
["Forklaring, Mek/EL","PE",20,0,0]
["Forklaring, SRO","PE",10,0,0]
["Beluftningstanke, Konstruktioner","PE",60,13000,13000]
["Beluftningstanke, Mek/EL","PE",20,13000,13000]
["Beluftningstanke, SRO","PE",10,13000,13000]
["Efterklaringstanke, Konstruktioner","PE",60,13000,13000]
["Efterklaringstanke, Mek/El","PE",20,13000,13000]
["Efterklaringstanke, SRO","PE",10,13000,13000]
["Efterbehandlingsanlæg (sandfilter), Konstruktioner","PE",60,0,0]
["Efterbehandlingsanlæg (sandfilter), Mek/EL","PE",20,0,0]
["Efterbehandlingsanlæg (sandfilter), SRO","PE",10,0,0]
["Renseanlæg >= 5.000 PE, Slambehandling",null,null,0]
["Forafvanding, slam, Konstruktion","PE",60,0]
["Forafvanding, slam, Mek/EL","PE",20,0]
["Forafvanding, slam, SRO","PE",10,0]
["Rådnetanke, slam, Konstruktioner","PE",60,0]
["Rådnetanke, slam, Mek/EL","PE",20,0]
["Rådnetanke, slam, SRO","PE",10,0]
["Gasdisponering, Konstruktioner","PE",60,0]
["Gasdisponering, Mek/EL","PE",20,0]
["Gasdisponering, SRO","PE",10,0]
["Gasdisponering - elproduktionsanlæg, Konstruktioner","PE",60,0]
["Gasdisponering - elproduktionsanlæg, Mek/EL","PE",20,0]
["Gasdisponering - elproduktionsanlæg, SRO","PE",10,0]
["Slutafvanding, slam - lavteknologisk (slambede), Konstruktioner","PE",60,0]
["Slutafvanding, slam - lavteknologisk (slambede), Mek/EL","PE",20,0]
["Slutafvanding, slam - lavteknologisk (slambede), SRO","PE",10,0]
["Slutafvanding, slam - højteknologisk (centrifuger), Konstruktioner","PE",60,0]
["Slutafvanding, slam - højteknologisk (centrifuger), Mek/El","PE",20,0]
["Slutafvanding, slam - højteknologisk (centrifuger), SRO","PE",10,0]
["Renseanlæg >= 5.000 PE, Slamdisponering",null,null,0]
["Slutdisponering, slam - lavteknologisk (slammineralisering), Konstruktioner","PE",60,0]
["Slutdisponering, slam - lavteknologisk (slammineralisering), Mek/EL","PE",20,0]
["Slutdisponering, slam - lavteknologisk (slammineralisering), SRO","PE",10,0]
["Slutdisponering, slam - højteknologisk (slamtørring), Konstruktioner","PE",60,0]
["Slutdisponering, slam - højteknologisk (slamtørring), Mek/EL","PE",20,0]
["Slutdisponering, slam - højteknologisk (slamtørring), SRO","PE",10,0]
["Slutdisponering, slam - højteknologisk (slamtørring og -forbrænding), Konstruktioner","PE",60,0]
["Slutdisponering, slam - højteknologisk (slamtørring og -forbrænding), Mek/EL","PE",20,0]
["Slutdisponering, slam - højteknologisk (slamtørring og -forbrænding), SRO","PE",10,0]
["Renseanlæg 6"]
["Mindre renseanlæg"]
["Mindre renseanlæg < 5.000 PE uden mulighed for opdeling","PE",40,0]
["Renseanlæg >= 5.000 PE, Vandbehandling",null,null,0]
["Indløb med riste, Konstruktioner","PE",60,27500,27500]
["Indløb med riste, Mek/EL","PE",20,27500,27500]
["Indløb med riste, SRO","PE",10,27500,27500]
["Sand- og fedtfang, Kontruktioner","PE",60,27500,27500]
["Sand- og fedtfang, Mek/EL","PE",20,27500,27500]
["Sand- og fedtfang, SRO","PE",10,27500,27500]
["Forklaring, Konstruktioner","PE",60,0,0]
["Forklaring, Mek/EL","PE",20,0,0]
["Forklaring, SRO","PE",10,0,0]
["Beluftningstanke, Konstruktioner","PE",60,27500,27500]
["Beluftningstanke, Mek/EL","PE",20,27500,27500]
["Beluftningstanke, SRO","PE",10,27500,27500]
["Efterklaringstanke, Konstruktioner","PE",60,27500,27500]
["Efterklaringstanke, Mek/El","PE",20,27500,27500]
["Efterklaringstanke, SRO","PE",10,27500,27500]
["Efterbehandlingsanlæg (sandfilter), Konstruktioner","PE",60,27500,27500]
["Efterbehandlingsanlæg (sandfilter), Mek/EL","PE",20,27500,27500]
["Efterbehandlingsanlæg (sandfilter), SRO","PE",10,27500,27500]
["Renseanlæg >= 5.000 PE, Slambehandling",null,null,0]
["Forafvanding, slam, Konstruktion","PE",60,0]
["Forafvanding, slam, Mek/EL","PE",20,0]
["Forafvanding, slam, SRO","PE",10,0]
["Rådnetanke, slam, Konstruktioner","PE",60,0]
["Rådnetanke, slam, Mek/EL","PE",20,0]
["Rådnetanke, slam, SRO","PE",10,0]
["Gasdisponering, Konstruktioner","PE",60,0]
["Gasdisponering, Mek/EL","PE",20,0]
["Gasdisponering, SRO","PE",10,0]
["Gasdisponering - elproduktionsanlæg, Konstruktioner","PE",60,0]
["Gasdisponering - elproduktionsanlæg, Mek/EL","PE",20,0]
["Gasdisponering - elproduktionsanlæg, SRO","PE",10,0]
["Slutafvanding, slam - lavteknologisk (slambede), Konstruktioner","PE",60,0]
["Slutafvanding, slam - lavteknologisk (slambede), Mek/EL","PE",20,0]
["Slutafvanding, slam - lavteknologisk (slambede), SRO","PE",10,0]
["Slutafvanding, slam - højteknologisk (centrifuger), Konstruktioner","PE",60,0]
["Slutafvanding, slam - højteknologisk (centrifuger), Mek/El","PE",20,0]
["Slutafvanding, slam - højteknologisk (centrifuger), SRO","PE",10,0]
["Renseanlæg >= 5.000 PE, Slamdisponering",null,null,0]
["Slutdisponering, slam - lavteknologisk (slammineralisering), Konstruktioner","PE",60,0]
["Slutdisponering, slam - lavteknologisk (slammineralisering), Mek/EL","PE",20,0]
["Slutdisponering, slam - lavteknologisk (slammineralisering), SRO","PE",10,0]
["Slutdisponering, slam - højteknologisk (slamtørring), Konstruktioner","PE",60,0]
["Slutdisponering, slam - højteknologisk (slamtørring), Mek/EL","PE",20,0]
["Slutdisponering, slam - højteknologisk (slamtørring), SRO","PE",10,0]
["Slutdisponering, slam - højteknologisk (slamtørring og -forbrænding), Konstruktioner","PE",60,0]
["Slutdisponering, slam - højteknologisk (slamtørring og -forbrænding), Mek/EL","PE",20,0]
["Slutdisponering, slam - højteknologisk (slamtørring og -forbrænding), SRO","PE",10,0]
["Renseanlæg 7"]
["Mindre renseanlæg"]
["Mindre renseanlæg < 5.000 PE uden mulighed for opdeling","PE",40,0]
["Renseanlæg >= 5.000 PE, Vandbehandling",null,null,0]
["Indløb med riste, Konstruktioner","PE",60,7500,7500]
["Indløb med riste, Mek/EL","PE",20,7500,7500]
["Indløb med riste, SRO","PE",10,7500,7500]
["Sand- og fedtfang, Kontruktioner","PE",60,7500,7500]
["Sand- og fedtfang, Mek/EL","PE",20,7500,7500]
["Sand- og fedtfang, SRO","PE",10,7500,7500]
["Forklaring, Konstruktioner","PE",60,0,0]
["Forklaring, Mek/EL","PE",20,0,0]
["Forklaring, SRO","PE",10,0,0]
["Beluftningstanke, Konstruktioner","PE",60,7500,7500]
["Beluftningstanke, Mek/EL","PE",20,7500,7500]
["Beluftningstanke, SRO","PE",10,7500,7500]
["Efterklaringstanke, Konstruktioner","PE",60,7500,7500]
["Efterklaringstanke, Mek/El","PE",20,7500,7500]
["Efterklaringstanke, SRO","PE",10,7500,7500]
["Efterbehandlingsanlæg (sandfilter), Konstruktioner","PE",60,7500,7500]
["Efterbehandlingsanlæg (sandfilter), Mek/EL","PE",20,7500,7500]
["Efterbehandlingsanlæg (sandfilter), SRO","PE",10,7500,7500]
["Renseanlæg >= 5.000 PE, Slambehandling",null,null,0]
["Forafvanding, slam, Konstruktion","PE",60,0]
["Forafvanding, slam, Mek/EL","PE",20,0]
["Forafvanding, slam, SRO","PE",10,0]
["Rådnetanke, slam, Konstruktioner","PE",60,0]
["Rådnetanke, slam, Mek/EL","PE",20,0]
["Rådnetanke, slam, SRO","PE",10,0]
["Gasdisponering, Konstruktioner","PE",60,0]
["Gasdisponering, Mek/EL","PE",20,0]
["Gasdisponering, SRO","PE",10,0]
["Gasdisponering - elproduktionsanlæg, Konstruktioner","PE",60,0]
["Gasdisponering - elproduktionsanlæg, Mek/EL","PE",20,0]
["Gasdisponering - elproduktionsanlæg, SRO","PE",10,0]
["Slutafvanding, slam - lavteknologisk (slambede), Konstruktioner","PE",60,0]
["Slutafvanding, slam - lavteknologisk (slambede), Mek/EL","PE",20,0]
["Slutafvanding, slam - lavteknologisk (slambede), SRO","PE",10,0]
["Slutafvanding, slam - højteknologisk (centrifuger), Konstruktioner","PE",60,0]
["Slutafvanding, slam - højteknologisk (centrifuger), Mek/El","PE",20,0]
["Slutafvanding, slam - højteknologisk (centrifuger), SRO","PE",10,0]
["Renseanlæg >= 5.000 PE, Slamdisponering",null,null,0]
["Slutdisponering, slam - lavteknologisk (slammineralisering), Konstruktioner","PE",60,0]
["Slutdisponering, slam - lavteknologisk (slammineralisering), Mek/EL","PE",20,0]
["Slutdisponering, slam - lavteknologisk (slammineralisering), SRO","PE",10,0]
["Slutdisponering, slam - højteknologisk (slamtørring), Konstruktioner","PE",60,0]
["Slutdisponering, slam - højteknologisk (slamtørring), Mek/EL","PE",20,0]
["Slutdisponering, slam - højteknologisk (slamtørring), SRO","PE",10,0]
["Slutdisponering, slam - højteknologisk (slamtørring og -forbrænding), Konstruktioner","PE",60,0]
["Slutdisponering, slam - højteknologisk (slamtørring og -forbrænding), Mek/EL","PE",20,0]
["Slutdisponering, slam - højteknologisk (slamtørring og -forbrænding), SRO","PE",10,0]
["Renseanlæg 8"]
["Mindre renseanlæg"]
["Mindre renseanlæg < 5.000 PE uden mulighed for opdeling","PE",40,2200,2200]
["Renseanlæg >= 5.000 PE, Vandbehandling",null,null,0]
["Indløb med riste, Konstruktioner","PE",60,0]
["Indløb med riste, Mek/EL","PE",20,0]
["Indløb med riste, SRO","PE",10,0]
["Sand- og fedtfang, Kontruktioner","PE",60,0]
["Sand- og fedtfang, Mek/EL","PE",20,0]
["Sand- og fedtfang, SRO","PE",10,0]
["Forklaring, Konstruktioner","PE",60,0]
["Forklaring, Mek/EL","PE",20,0]
["Forklaring, SRO","PE",10,0]
["Beluftningstanke, Konstruktioner","PE",60,0]
["Beluftningstanke, Mek/EL","PE",20,0]
["Beluftningstanke, SRO","PE",10,0]
["Efterklaringstanke, Konstruktioner","PE",60,0]
["Efterklaringstanke, Mek/El","PE",20,0]
["Efterklaringstanke, SRO","PE",10,0]
["Efterbehandlingsanlæg (sandfilter), Konstruktioner","PE",60,0]
["Efterbehandlingsanlæg (sandfilter), Mek/EL","PE",20,0]
["Efterbehandlingsanlæg (sandfilter), SRO","PE",10,0]
["Renseanlæg >= 5.000 PE, Slambehandling",null,null,0]
["Forafvanding, slam, Konstruktion","PE",60,0]
["Forafvanding, slam, Mek/EL","PE",20,0]
["Forafvanding, slam, SRO","PE",10,0]
["Rådnetanke, slam, Konstruktioner","PE",60,0]
["Rådnetanke, slam, Mek/EL","PE",20,0]
["Rådnetanke, slam, SRO","PE",10,0]
["Gasdisponering, Konstruktioner","PE",60,0]
["Gasdisponering, Mek/EL","PE",20,0]
["Gasdisponering, SRO","PE",10,0]
["Gasdisponering - elproduktionsanlæg, Konstruktioner","PE",60,0]
["Gasdisponering - elproduktionsanlæg, Mek/EL","PE",20,0]
["Gasdisponering - elproduktionsanlæg, SRO","PE",10,0]
["Slutafvanding, slam - lavteknologisk (slambede), Konstruktioner","PE",60,0]
["Slutafvanding, slam - lavteknologisk (slambede), Mek/EL","PE",20,0]
["Slutafvanding, slam - lavteknologisk (slambede), SRO","PE",10,0]
["Slutafvanding, slam - højteknologisk (centrifuger), Konstruktioner","PE",60,0]
["Slutafvanding, slam - højteknologisk (centrifuger), Mek/El","PE",20,0]
["Slutafvanding, slam - højteknologisk (centrifuger), SRO","PE",10,0]
["Renseanlæg >= 5.000 PE, Slamdisponering",null,null,0]
["Slutdisponering, slam - lavteknologisk (slammineralisering), Konstruktioner","PE",60,0]
["Slutdisponering, slam - lavteknologisk (slammineralisering), Mek/EL","PE",20,0]
["Slutdisponering, slam - lavteknologisk (slammineralisering), SRO","PE",10,0]
["Slutdisponering, slam - højteknologisk (slamtørring), Konstruktioner","PE",60,0]
["Slutdisponering, slam - højteknologisk (slamtørring), Mek/EL","PE",20,0]
["Slutdisponering, slam - højteknologisk (slamtørring), SRO","PE",10,0]
["Slutdisponering, slam - højteknologisk (slamtørring og -forbrænding), Konstruktioner","PE",60,0]
["Slutdisponering, slam - højteknologisk (slamtørring og -forbrænding), Mek/EL","PE",20,0]
["Slutdisponering, slam - højteknologisk (slamtørring og -forbrænding), SRO","PE",10,0]
["Renseanlæg 9"]
["Mindre renseanlæg"]
["Mindre renseanlæg < 5.000 PE uden mulighed for opdeling","PE",40,4200,4200]
["Renseanlæg >= 5.000 PE, Vandbehandling",null,null,0]
["Indløb med riste, Konstruktioner","PE",60,0]
["Indløb med riste, Mek/EL","PE",20,0]
["Indløb med riste, SRO","PE",10,0]
["Sand- og fedtfang, Kontruktioner","PE",60,0]
["Sand- og fedtfang, Mek/EL","PE",20,0]
["Sand- og fedtfang, SRO","PE",10,0]
["Forklaring, Konstruktioner","PE",60,0]
["Forklaring, Mek/EL","PE",20,0]
["Forklaring, SRO","PE",10,0]
["Beluftningstanke, Konstruktioner","PE",60,0]
["Beluftningstanke, Mek/EL","PE",20,0]
["Beluftningstanke, SRO","PE",10,0]
["Efterklaringstanke, Konstruktioner","PE",60,0]
["Efterklaringstanke, Mek/El","PE",20,0]
["Efterklaringstanke, SRO","PE",10,0]
["Efterbehandlingsanlæg (sandfilter), Konstruktioner","PE",60,0]
["Efterbehandlingsanlæg (sandfilter), Mek/EL","PE",20,0]
["Efterbehandlingsanlæg (sandfilter), SRO","PE",10,0]
["Renseanlæg >= 5.000 PE, Slambehandling",null,null,0]
["Forafvanding, slam, Konstruktion","PE",60,0]
["Forafvanding, slam, Mek/EL","PE",20,0]
["Forafvanding, slam, SRO","PE",10,0]
["Rådnetanke, slam, Konstruktioner","PE",60,0]
["Rådnetanke, slam, Mek/EL","PE",20,0]
["Rådnetanke, slam, SRO","PE",10,0]
["Gasdisponering, Konstruktioner","PE",60,0]
["Gasdisponering, Mek/EL","PE",20,0]
["Gasdisponering, SRO","PE",10,0]
["Gasdisponering - elproduktionsanlæg, Konstruktioner","PE",60,0]
["Gasdisponering - elproduktionsanlæg, Mek/EL","PE",20,0]
["Gasdisponering - elproduktionsanlæg, SRO","PE",10,0]
["Slutafvanding, slam - lavteknologisk (slambede), Konstruktioner","PE",60,0]
["Slutafvanding, slam - lavteknologisk (slambede), Mek/EL","PE",20,0]
["Slutafvanding, slam - lavteknologisk (slambede), SRO","PE",10,0]
["Slutafvanding, slam - højteknologisk (centrifuger), Konstruktioner","PE",60,0]
["Slutafvanding, slam - højteknologisk (centrifuger), Mek/El","PE",20,0]
["Slutafvanding, slam - højteknologisk (centrifuger), SRO","PE",10,0]
["Renseanlæg >= 5.000 PE, Slamdisponering",null,null,0]
["Slutdisponering, slam - lavteknologisk (slammineralisering), Konstruktioner","PE",60,0]
["Slutdisponering, slam - lavteknologisk (slammineralisering), Mek/EL","PE",20,0]
["Slutdisponering, slam - lavteknologisk (slammineralisering), SRO","PE",10,0]
["Slutdisponering, slam - højteknologisk (slamtørring), Konstruktioner","PE",60,0]
["Slutdisponering, slam - højteknologisk (slamtørring), Mek/EL","PE",20,0]
["Slutdisponering, slam - højteknologisk (slamtørring), SRO","PE",10,0]
["Slutdisponering, slam - højteknologisk (slamtørring og -forbrænding), Konstruktioner","PE",60,0]
["Slutdisponering, slam - højteknologisk (slamtørring og -forbrænding), Mek/EL","PE",20,0]
["Slutdisponering, slam - højteknologisk (slamtørring og -forbrænding), SRO","PE",10,0]
["Renseanlæg 10"]
["Mindre renseanlæg"]
["Mindre renseanlæg < 5.000 PE uden mulighed for opdeling","PE",40,{"$f":"1700-1700","v":0},null,"Nedlagt"]
["Renseanlæg >= 5.000 PE, Vandbehandling",null,null,0]
["Indløb med riste, Konstruktioner","PE",60,0]
["Indløb med riste, Mek/EL","PE",20,0]
["Indløb med riste, SRO","PE",10,0]
["Sand- og fedtfang, Kontruktioner","PE",60,0]
["Sand- og fedtfang, Mek/EL","PE",20,0]
["Sand- og fedtfang, SRO","PE",10,0]
["Forklaring, Konstruktioner","PE",60,0]
["Forklaring, Mek/EL","PE",20,0]
["Forklaring, SRO","PE",10,0]
["Beluftningstanke, Konstruktioner","PE",60,0]
["Beluftningstanke, Mek/EL","PE",20,0]
["Beluftningstanke, SRO","PE",10,0]
["Efterklaringstanke, Konstruktioner","PE",60,0]
["Efterklaringstanke, Mek/El","PE",20,0]
["Efterklaringstanke, SRO","PE",10,0]
["Efterbehandlingsanlæg (sandfilter), Konstruktioner","PE",60,0]
["Efterbehandlingsanlæg (sandfilter), Mek/EL","PE",20,0]
["Efterbehandlingsanlæg (sandfilter), SRO","PE",10,0]
["Renseanlæg >= 5.000 PE, Slambehandling",null,null,0]
["Forafvanding, slam, Konstruktion","PE",60,0]
["Forafvanding, slam, Mek/EL","PE",20,0]
["Forafvanding, slam, SRO","PE",10,0]
["Rådnetanke, slam, Konstruktioner","PE",60,0]
["Rådnetanke, slam, Mek/EL","PE",20,0]
["Rådnetanke, slam, SRO","PE",10,0]
["Gasdisponering, Konstruktioner","PE",60,0]
["Gasdisponering, Mek/EL","PE",20,0]
["Gasdisponering, SRO","PE",10,0]
["Gasdisponering - elproduktionsanlæg, Konstruktioner","PE",60,0]
["Gasdisponering - elproduktionsanlæg, Mek/EL","PE",20,0]
["Gasdisponering - elproduktionsanlæg, SRO","PE",10,0]
["Slutafvanding, slam - lavteknologisk (slambede), Konstruktioner","PE",60,0]
["Slutafvanding, slam - lavteknologisk (slambede), Mek/EL","PE",20,0]
["Slutafvanding, slam - lavteknologisk (slambede), SRO","PE",10,0]
["Slutafvanding, slam - højteknologisk (centrifuger), Konstruktioner","PE",60,0]
["Slutafvanding, slam - højteknologisk (centrifuger), Mek/El","PE",20,0]
["Slutafvanding, slam - højteknologisk (centrifuger), SRO","PE",10,0]
["Renseanlæg >= 5.000 PE, Slamdisponering",null,null,0]
["Slutdisponering, slam - lavteknologisk (slammineralisering), Konstruktioner","PE",60,0]
["Slutdisponering, slam - lavteknologisk (slammineralisering), Mek/EL","PE",20,0]
["Slutdisponering, slam - lavteknologisk (slammineralisering), SRO","PE",10,0]
["Slutdisponering, slam - højteknologisk (slamtørring), Konstruktioner","PE",60,0]
["Slutdisponering, slam - højteknologisk (slamtørring), Mek/EL","PE",20,0]
["Slutdisponering, slam - højteknologisk (slamtørring), SRO","PE",10,0]
["Slutdisponering, slam - højteknologisk (slamtørring og -forbrænding), Konstruktioner","PE",60,0]
["Slutdisponering, slam - højteknologisk (slamtørring og -forbrænding), Mek/EL","PE",20,0]
["Slutdisponering, slam - højteknologisk (slamtørring og -forbrænding), SRO","PE",10,0]
["Mindre renseanlæg"]
["Mindre renseanlæg < 5.000 PE uden mulighed for opdeling","PE",40,0]
["Renseanlæg >= 5.000 PE, Vandbehandling",null,null,0]
["Indløb med riste, Konstruktioner","PE",60,0]
["Indløb med riste, Mek/EL","PE",20,0]
["Indløb med riste, SRO","PE",10,0]
["Sand- og fedtfang, Kontruktioner","PE",60,0]
["Sand- og fedtfang, Mek/EL","PE",20,0]
["Sand- og fedtfang, SRO","PE",10,0]
["Forklaring, Konstruktioner","PE",60,0]
["Forklaring, Mek/EL","PE",20,0]
["Forklaring, SRO","PE",10,0]
["Beluftningstanke, Konstruktioner","PE",60,0]
["Beluftningstanke, Mek/EL","PE",20,0]
["Beluftningstanke, SRO","PE",10,0]
["Efterklaringstanke, Konstruktioner","PE",60,0]
["Efterklaringstanke, Mek/El","PE",20,0]
["Efterklaringstanke, SRO","PE",10,0]
["Efterbehandlingsanlæg (sandfilter), Konstruktioner","PE",60,0]
["Efterbehandlingsanlæg (sandfilter), Mek/EL","PE",20,0]
["Efterbehandlingsanlæg (sandfilter), SRO","PE",10,0]
["Renseanlæg >= 5.000 PE, Slambehandling",null,null,0]
["Forafvanding, slam, Konstruktion","PE",60,0]
["Forafvanding, slam, Mek/EL","PE",20,0]
["Forafvanding, slam, SRO","PE",10,0]
["Rådnetanke, slam, Konstruktioner","PE",60,0]
["Rådnetanke, slam, Mek/EL","PE",20,0]
["Rådnetanke, slam, SRO","PE",10,0]
["Gasdisponering, Konstruktioner","PE",60,0]
["Gasdisponering, Mek/EL","PE",20,0]
["Gasdisponering, SRO","PE",10,0]
["Gasdisponering - elproduktionsanlæg, Konstruktioner","PE",60,0]
["Gasdisponering - elproduktionsanlæg, Mek/EL","PE",20,0]
["Gasdisponering - elproduktionsanlæg, SRO","PE",10,0]
["Slutafvanding, slam - lavteknologisk (slambede), Konstruktioner","PE",60,0]
["Slutafvanding, slam - lavteknologisk (slambede), Mek/EL","PE",20,0]
["Slutafvanding, slam - lavteknologisk (slambede), SRO","PE",10,0]
["Slutafvanding, slam - højteknologisk (centrifuger), Konstruktioner","PE",60,50000,50000]
["Slutafvanding, slam - højteknologisk (centrifuger), Mek/El","PE",20,50000,50000]
["Slutafvanding, slam - højteknologisk (centrifuger), SRO","PE",10,50000,50000]
["Renseanlæg >= 5.000 PE, Slamdisponering",null,null,0]
["Slutdisponering, slam - lavteknologisk (slammineralisering), Konstruktioner","PE",60,45000,45000]
["Slutdisponering, slam - lavteknologisk (slammineralisering), Mek/EL","PE",20,45000,45000]
["Slutdisponering, slam - lavteknologisk (slammineralisering), SRO","PE",10,45000,45000]
["Slutdisponering, slam - højteknologisk (slamtørring), Konstruktioner","PE",60,0]
["Slutdisponering, slam - højteknologisk (slamtørring), Mek/EL","PE",20,0]
["Slutdisponering, slam - højteknologisk (slamtørring), SRO","PE",10,0]
["Slutdisponering, slam - højteknologisk (slamtørring og -forbrænding), Konstruktioner","PE",60,0]
["Slutdisponering, slam - højteknologisk (slamtørring og -forbrænding), Mek/EL","PE",20,0]
["Slutdisponering, slam - højteknologisk (slamtørring og -forbrænding), SRO","PE",10,0]
[]
["Renseanlæg 11"]
["Mindre renseanlæg"]
["Mindre renseanlæg < 5.000 PE uden mulighed for opdeling","PE",40,0]
["Renseanlæg >= 5.000 PE, Vandbehandling"]
["Indløb med riste, Konstruktioner","PE",60,0]
["Indløb med riste, Mek/EL","PE",20,0]
["Indløb med riste, SRO","PE",10,0]
["Sand- og fedtfang, Kontruktioner","PE",60,0]
["Sand- og fedtfang, Mek/EL","PE",20,0]
["Sand- og fedtfang, SRO","PE",10,0]
["Forklaring, Konstruktioner","PE",60,0]
["Forklaring, Mek/EL","PE",20,0]
["Forklaring, SRO","PE",10,0]
["Beluftningstanke, Konstruktioner","PE",60,0]
["Beluftningstanke, Mek/EL","PE",20,0]
["Beluftningstanke, SRO","PE",10,0]
["Efterklaringstanke, Konstruktioner","PE",60,0]
["Efterklaringstanke, Mek/El","PE",20,0]
["Efterklaringstanke, SRO","PE",10,0]
["Efterbehandlingsanlæg (sandfilter), Konstruktioner","PE",60,0]
["Efterbehandlingsanlæg (sandfilter), Mek/EL","PE",20,0]
["Efterbehandlingsanlæg (sandfilter), SRO","PE",10,0]
["Renseanlæg >= 5.000 PE, Slambehandling"]
["Forafvanding, slam, Konstruktion","PE",60,0]
["Forafvanding, slam, Mek/EL","PE",20,0]
["Forafvanding, slam, SRO","PE",10,0]
["Rådnetanke, slam, Konstruktioner","PE",60,0]
["Rådnetanke, slam, Mek/EL","PE",20,0]
["Rådnetanke, slam, SRO","PE",10,0]
["Gasdisponering, Konstruktioner","PE",60,0]
["Gasdisponering, Mek/EL","PE",20,0]
["Gasdisponering, SRO","PE",10,0]
["Gasdisponering - elproduktionsanlæg, Konstruktioner","PE",60,0]
["Gasdisponering - elproduktionsanlæg, Mek/EL","PE",20,0]
["Gasdisponering - elproduktionsanlæg, SRO","PE",10,0]
["Slutafvanding, slam - lavteknologisk (slambede), Konstruktioner","PE",60,0]
["Slutafvanding, slam - lavteknologisk (slambede), Mek/EL","PE",20,0]
["Slutafvanding, slam - lavteknologisk (slambede), SRO","PE",10,0]
["Slutafvanding, slam - højteknologisk (centrifuger), Konstruktioner","PE",60,0]
["Slutafvanding, slam - højteknologisk (centrifuger), Mek/El","PE",20,0]
["Slutafvanding, slam - højteknologisk (centrifuger), SRO","PE",10,0]
["Renseanlæg >= 5.000 PE, Slamdisponering"]
["Slutdisponering, slam - lavteknologisk (slammineralisering), Konstruktioner","PE",60,0]
["Slutdisponering, slam - lavteknologisk (slammineralisering), Mek/EL","PE",20,0]
["Slutdisponering, slam - lavteknologisk (slammineralisering), SRO","PE",10,0]
["Slutdisponering, slam - højteknologisk (slamtørring), Konstruktioner","PE",60,0]
["Slutdisponering, slam - højteknologisk (slamtørring), Mek/EL","PE",20,0]
["Slutdisponering, slam - højteknologisk (slamtørring), SRO","PE",10,0]
["Slutdisponering, slam - højteknologisk (slamtørring og -forbrænding), Konstruktioner","PE",60,0]
["Slutdisponering, slam - højteknologisk (slamtørring og -forbrænding), Mek/EL","PE",20,0]
["Slutdisponering, slam - højteknologisk (slamtørring og -forbrænding), SRO","PE",10,0]
["Renseanlæg 12"]
["Mindre renseanlæg"]
["Mindre renseanlæg < 5.000 PE uden mulighed for opdeling","PE",40,0]
["Renseanlæg >= 5.000 PE, Vandbehandling"]
["Indløb med riste, Konstruktioner","PE",60,0]
["Indløb med riste, Mek/EL","PE",20,0]
["Indløb med riste, SRO","PE",10,0]
["Sand- og fedtfang, Kontruktioner","PE",60,0]
["Sand- og fedtfang, Mek/EL","PE",20,0]
["Sand- og fedtfang, SRO","PE",10,0]
["Forklaring, Konstruktioner","PE",60,0]
["Forklaring, Mek/EL","PE",20,0]
["Forklaring, SRO","PE",10,0]
["Beluftningstanke, Konstruktioner","PE",60,0]
["Beluftningstanke, Mek/EL","PE",20,0]
["Beluftningstanke, SRO","PE",10,0]
["Efterklaringstanke, Konstruktioner","PE",60,0]
["Efterklaringstanke, Mek/El","PE",20,0]
["Efterklaringstanke, SRO","PE",10,0]
["Efterbehandlingsanlæg (sandfilter), Konstruktioner","PE",60,0]
["Efterbehandlingsanlæg (sandfilter), Mek/EL","PE",20,0]
["Efterbehandlingsanlæg (sandfilter), SRO","PE",10,0]
["Renseanlæg >= 5.000 PE, Slambehandling"]
["Forafvanding, slam, Konstruktion","PE",60,0]
["Forafvanding, slam, Mek/EL","PE",20,0]
["Forafvanding, slam, SRO","PE",10,0]
["Rådnetanke, slam, Konstruktioner","PE",60,0]
["Rådnetanke, slam, Mek/EL","PE",20,0]
["Rådnetanke, slam, SRO","PE",10,0]
["Gasdisponering, Konstruktioner","PE",60,0]
["Gasdisponering, Mek/EL","PE",20,0]
["Gasdisponering, SRO","PE",10,0]
["Gasdisponering - elproduktionsanlæg, Konstruktioner","PE",60,0]
["Gasdisponering - elproduktionsanlæg, Mek/EL","PE",20,0]
["Gasdisponering - elproduktionsanlæg, SRO","PE",10,0]
["Slutafvanding, slam - lavteknologisk (slambede), Konstruktioner","PE",60,0]
["Slutafvanding, slam - lavteknologisk (slambede), Mek/EL","PE",20,0]
["Slutafvanding, slam - lavteknologisk (slambede), SRO","PE",10,0]
["Slutafvanding, slam - højteknologisk (centrifuger), Konstruktioner","PE",60,0]
["Slutafvanding, slam - højteknologisk (centrifuger), Mek/El","PE",20,0]
["Slutafvanding, slam - højteknologisk (centrifuger), SRO","PE",10,0]
["Renseanlæg >= 5.000 PE, Slamdisponering"]
["Slutdisponering, slam - lavteknologisk (slammineralisering), Konstruktioner","PE",60,0]
["Slutdisponering, slam - lavteknologisk (slammineralisering), Mek/EL","PE",20,0]
["Slutdisponering, slam - lavteknologisk (slammineralisering), SRO","PE",10,0]
["Slutdisponering, slam - højteknologisk (slamtørring), Konstruktioner","PE",60,0]
["Slutdisponering, slam - højteknologisk (slamtørring), Mek/EL","PE",20,0]
["Slutdisponering, slam - højteknologisk (slamtørring), SRO","PE",10,0]
["Slutdisponering, slam - højteknologisk (slamtørring og -forbrænding), Konstruktioner","PE",60,0]
["Slutdisponering, slam - højteknologisk (slamtørring og -forbrænding), Mek/EL","PE",20,0]
["Slutdisponering, slam - højteknologisk (slamtørring og -forbrænding), SRO","PE",10,0]
["Renseanlæg 13"]
["Mindre renseanlæg"]
["Mindre renseanlæg < 5.000 PE uden mulighed for opdeling","PE",40,0]
["Renseanlæg >= 5.000 PE, Vandbehandling"]
["Indløb med riste, Konstruktioner","PE",60,0]
["Indløb med riste, Mek/EL","PE",20,0]
["Indløb med riste, SRO","PE",10,0]
["Sand- og fedtfang, Kontruktioner","PE",60,0]
["Sand- og fedtfang, Mek/EL","PE",20,0]
["Sand- og fedtfang, SRO","PE",10,0]
["Forklaring, Konstruktioner","PE",60,0]
["Forklaring, Mek/EL","PE",20,0]
["Forklaring, SRO","PE",10,0]
["Beluftningstanke, Konstruktioner","PE",60,0]
["Beluftningstanke, Mek/EL","PE",20,0]
["Beluftningstanke, SRO","PE",10,0]
["Efterklaringstanke, Konstruktioner","PE",60,0]
["Efterklaringstanke, Mek/El","PE",20,0]
["Efterklaringstanke, SRO","PE",10,0]
["Efterbehandlingsanlæg (sandfilter), Konstruktioner","PE",60,0]
["Efterbehandlingsanlæg (sandfilter), Mek/EL","PE",20,0]
["Efterbehandlingsanlæg (sandfilter), SRO","PE",10,0]
["Renseanlæg >= 5.000 PE, Slambehandling"]
["Forafvanding, slam, Konstruktion","PE",60,0]
["Forafvanding, slam, Mek/EL","PE",20,0]
["Forafvanding, slam, SRO","PE",10,0]
["Rådnetanke, slam, Konstruktioner","PE",60,0]
["Rådnetanke, slam, Mek/EL","PE",20,0]
["Rådnetanke, slam, SRO","PE",10,0]
["Gasdisponering, Konstruktioner","PE",60,0]
["Gasdisponering, Mek/EL","PE",20,0]
["Gasdisponering, SRO","PE",10,0]
["Gasdisponering - elproduktionsanlæg, Konstruktioner","PE",60,0]
["Gasdisponering - elproduktionsanlæg, Mek/EL","PE",20,0]
["Gasdisponering - elproduktionsanlæg, SRO","PE",10,0]
["Slutafvanding, slam - lavteknologisk (slambede), Konstruktioner","PE",60,0]
["Slutafvanding, slam - lavteknologisk (slambede), Mek/EL","PE",20,0]
["Slutafvanding, slam - lavteknologisk (slambede), SRO","PE",10,0]
["Slutafvanding, slam - højteknologisk (centrifuger), Konstruktioner","PE",60,0]
["Slutafvanding, slam - højteknologisk (centrifuger), Mek/El","PE",20,0]
["Slutafvanding, slam - højteknologisk (centrifuger), SRO","PE",10,0]
["Renseanlæg >= 5.000 PE, Slamdisponering"]
["Slutdisponering, slam - lavteknologisk (slammineralisering), Konstruktioner","PE",60,0]
["Slutdisponering, slam - lavteknologisk (slammineralisering), Mek/EL","PE",20,0]
["Slutdisponering, slam - lavteknologisk (slammineralisering), SRO","PE",10,0]
["Slutdisponering, slam - højteknologisk (slamtørring), Konstruktioner","PE",60,0]
["Slutdisponering, slam - højteknologisk (slamtørring), Mek/EL","PE",20,0]
["Slutdisponering, slam - højteknologisk (slamtørring), SRO","PE",10,0]
["Slutdisponering, slam - højteknologisk (slamtørring og -forbrænding), Konstruktioner","PE",60,0]
["Slutdisponering, slam - højteknologisk (slamtørring og -forbrænding), Mek/EL","PE",20,0]
["Slutdisponering, slam - højteknologisk (slamtørring og -forbrænding), SRO","PE",10,0]
["Renseanlæg 14"]
["Mindre renseanlæg"]
["Mindre renseanlæg < 5.000 PE uden mulighed for opdeling","PE",40,0]
["Renseanlæg >= 5.000 PE, Vandbehandling"]
["Indløb med riste, Konstruktioner","PE",60,0]
["Indløb med riste, Mek/EL","PE",20,0]
["Indløb med riste, SRO","PE",10,0]
["Sand- og fedtfang, Kontruktioner","PE",60,0]
["Sand- og fedtfang, Mek/EL","PE",20,0]
["Sand- og fedtfang, SRO","PE",10,0]
["Forklaring, Konstruktioner","PE",60,0]
["Forklaring, Mek/EL","PE",20,0]
["Forklaring, SRO","PE",10,0]
["Beluftningstanke, Konstruktioner","PE",60,0]
["Beluftningstanke, Mek/EL","PE",20,0]
["Beluftningstanke, SRO","PE",10,0]
["Efterklaringstanke, Konstruktioner","PE",60,0]
["Efterklaringstanke, Mek/El","PE",20,0]
["Efterklaringstanke, SRO","PE",10,0]
["Efterbehandlingsanlæg (sandfilter), Konstruktioner","PE",60,0]
["Efterbehandlingsanlæg (sandfilter), Mek/EL","PE",20,0]
["Efterbehandlingsanlæg (sandfilter), SRO","PE",10,0]
["Renseanlæg >= 5.000 PE, Slambehandling"]
["Forafvanding, slam, Konstruktion","PE",60,0]
["Forafvanding, slam, Mek/EL","PE",20,0]
["Forafvanding, slam, SRO","PE",10,0]
["Rådnetanke, slam, Konstruktioner","PE",60,0]
["Rådnetanke, slam, Mek/EL","PE",20,0]
["Rådnetanke, slam, SRO","PE",10,0]
["Gasdisponering, Konstruktioner","PE",60,0]
["Gasdisponering, Mek/EL","PE",20,0]
["Gasdisponering, SRO","PE",10,0]
["Gasdisponering - elproduktionsanlæg, Konstruktioner","PE",60,0]
["Gasdisponering - elproduktionsanlæg, Mek/EL","PE",20,0]
["Gasdisponering - elproduktionsanlæg, SRO","PE",10,0]
["Slutafvanding, slam - lavteknologisk (slambede), Konstruktioner","PE",60,0]
["Slutafvanding, slam - lavteknologisk (slambede), Mek/EL","PE",20,0]
["Slutafvanding, slam - lavteknologisk (slambede), SRO","PE",10,0]
["Slutafvanding, slam - højteknologisk (centrifuger), Konstruktioner","PE",60,0]
["Slutafvanding, slam - højteknologisk (centrifuger), Mek/El","PE",20,0]
["Slutafvanding, slam - højteknologisk (centrifuger), SRO","PE",10,0]
["Renseanlæg >= 5.000 PE, Slamdisponering"]
["Slutdisponering, slam - lavteknologisk (slammineralisering), Konstruktioner","PE",60,0]
["Slutdisponering, slam - lavteknologisk (slammineralisering), Mek/EL","PE",20,0]
["Slutdisponering, slam - lavteknologisk (slammineralisering), SRO","PE",10,0]
["Slutdisponering, slam - højteknologisk (slamtørring), Konstruktioner","PE",60,0]
["Slutdisponering, slam - højteknologisk (slamtørring), Mek/EL","PE",20,0]
["Slutdisponering, slam - højteknologisk (slamtørring), SRO","PE",10,0]
["Slutdisponering, slam - højteknologisk (slamtørring og -forbrænding), Konstruktioner","PE",60,0]
["Slutdisponering, slam - højteknologisk (slamtørring og -forbrænding), Mek/EL","PE",20,0]
["Slutdisponering, slam - højteknologisk (slamtørring og -forbrænding), SRO","PE",10,0]
["Renseanlæg 15"]
["Mindre renseanlæg"]
["Mindre renseanlæg < 5.000 PE uden mulighed for opdeling","PE",40,0]
["Renseanlæg >= 5.000 PE, Vandbehandling"]
["Indløb med riste, Konstruktioner","PE",60,0]
["Indløb med riste, Mek/EL","PE",20,0]
["Indløb med riste, SRO","PE",10,0]
["Sand- og fedtfang, Kontruktioner","PE",60,0]
["Sand- og fedtfang, Mek/EL","PE",20,0]
["Sand- og fedtfang, SRO","PE",10,0]
["Forklaring, Konstruktioner","PE",60,0]
["Forklaring, Mek/EL","PE",20,0]
["Forklaring, SRO","PE",10,0]
["Beluftningstanke, Konstruktioner","PE",60,0]
["Beluftningstanke, Mek/EL","PE",20,0]
["Beluftningstanke, SRO","PE",10,0]
["Efterklaringstanke, Konstruktioner","PE",60,0]
["Efterklaringstanke, Mek/El","PE",20,0]
["Efterklaringstanke, SRO","PE",10,0]
["Efterbehandlingsanlæg (sandfilter), Konstruktioner","PE",60,0]
["Efterbehandlingsanlæg (sandfilter), Mek/EL","PE",20,0]
["Efterbehandlingsanlæg (sandfilter), SRO","PE",10,0]
["Renseanlæg >= 5.000 PE, Slambehandling"]
["Forafvanding, slam, Konstruktion","PE",60,0]
["Forafvanding, slam, Mek/EL","PE",20,0]
["Forafvanding, slam, SRO","PE",10,0]
["Rådnetanke, slam, Konstruktioner","PE",60,0]
["Rådnetanke, slam, Mek/EL","PE",20,0]
["Rådnetanke, slam, SRO","PE",10,0]
["Gasdisponering, Konstruktioner","PE",60,0]
["Gasdisponering, Mek/EL","PE",20,0]
["Gasdisponering, SRO","PE",10,0]
["Gasdisponering - elproduktionsanlæg, Konstruktioner","PE",60,0]
["Gasdisponering - elproduktionsanlæg, Mek/EL","PE",20,0]
["Gasdisponering - elproduktionsanlæg, SRO","PE",10,0]
["Slutafvanding, slam - lavteknologisk (slambede), Konstruktioner","PE",60,0]
["Slutafvanding, slam - lavteknologisk (slambede), Mek/EL","PE",20,0]
["Slutafvanding, slam - lavteknologisk (slambede), SRO","PE",10,0]
["Slutafvanding, slam - højteknologisk (centrifuger), Konstruktioner","PE",60,0]
["Slutafvanding, slam - højteknologisk (centrifuger), Mek/El","PE",20,0]
["Slutafvanding, slam - højteknologisk (centrifuger), SRO","PE",10,0]
["Renseanlæg >= 5.000 PE, Slamdisponering"]
["Slutdisponering, slam - lavteknologisk (slammineralisering), Konstruktioner","PE",60,0]
["Slutdisponering, slam - lavteknologisk (slammineralisering), Mek/EL","PE",20,0]
["Slutdisponering, slam - lavteknologisk (slammineralisering), SRO","PE",10,0]
["Slutdisponering, slam - højteknologisk (slamtørring), Konstruktioner","PE",60,0]
["Slutdisponering, slam - højteknologisk (slamtørring), Mek/EL","PE",20,0]
["Slutdisponering, slam - højteknologisk (slamtørring), SRO","PE",10,0]
["Slutdisponering, slam - højteknologisk (slamtørring og -forbrænding), Konstruktioner","PE",60,0]
["Slutdisponering, slam - højteknologisk (slamtørring og -forbrænding), Mek/EL","PE",20,0]
["Slutdisponering, slam - højteknologisk (slamtørring og -forbrænding), SRO","PE",10,0]
["Renseanlæg 16"]
["Mindre renseanlæg"]
["Mindre renseanlæg < 5.000 PE uden mulighed for opdeling","PE",40,0]
["Renseanlæg >= 5.000 PE, Vandbehandling"]
["Indløb med riste, Konstruktioner","PE",60,0]
["Indløb med riste, Mek/EL","PE",20,0]
["Indløb med riste, SRO","PE",10,0]
["Sand- og fedtfang, Kontruktioner","PE",60,0]
["Sand- og fedtfang, Mek/EL","PE",20,0]
["Sand- og fedtfang, SRO","PE",10,0]
["Forklaring, Konstruktioner","PE",60,0]
["Forklaring, Mek/EL","PE",20,0]
["Forklaring, SRO","PE",10,0]
["Beluftningstanke, Konstruktioner","PE",60,0]
["Beluftningstanke, Mek/EL","PE",20,0]
["Beluftningstanke, SRO","PE",10,0]
["Efterklaringstanke, Konstruktioner","PE",60,0]
["Efterklaringstanke, Mek/El","PE",20,0]
["Efterklaringstanke, SRO","PE",10,0]
["Efterbehandlingsanlæg (sandfilter), Konstruktioner","PE",60,0]
["Efterbehandlingsanlæg (sandfilter), Mek/EL","PE",20,0]
["Efterbehandlingsanlæg (sandfilter), SRO","PE",10,0]
["Renseanlæg >= 5.000 PE, Slambehandling"]
["Forafvanding, slam, Konstruktion","PE",60,0]
["Forafvanding, slam, Mek/EL","PE",20,0]
["Forafvanding, slam, SRO","PE",10,0]
["Rådnetanke, slam, Konstruktioner","PE",60,0]
["Rådnetanke, slam, Mek/EL","PE",20,0]
["Rådnetanke, slam, SRO","PE",10,0]
["Gasdisponering, Konstruktioner","PE",60,0]
["Gasdisponering, Mek/EL","PE",20,0]
["Gasdisponering, SRO","PE",10,0]
["Gasdisponering - elproduktionsanlæg, Konstruktioner","PE",60,0]
["Gasdisponering - elproduktionsanlæg, Mek/EL","PE",20,0]
["Gasdisponering - elproduktionsanlæg, SRO","PE",10,0]
["Slutafvanding, slam - lavteknologisk (slambede), Konstruktioner","PE",60,0]
["Slutafvanding, slam - lavteknologisk (slambede), Mek/EL","PE",20,0]
["Slutafvanding, slam - lavteknologisk (slambede), SRO","PE",10,0]
["Slutafvanding, slam - højteknologisk (centrifuger), Konstruktioner","PE",60,0]
["Slutafvanding, slam - højteknologisk (centrifuger), Mek/El","PE",20,0]
["Slutafvanding, slam - højteknologisk (centrifuger), SRO","PE",10,0]
["Renseanlæg >= 5.000 PE, Slamdisponering"]
["Slutdisponering, slam - lavteknologisk (slammineralisering), Konstruktioner","PE",60,0]
["Slutdisponering, slam - lavteknologisk (slammineralisering), Mek/EL","PE",20,0]
["Slutdisponering, slam - lavteknologisk (slammineralisering), SRO","PE",10,0]
["Slutdisponering, slam - højteknologisk (slamtørring), Konstruktioner","PE",60,0]
["Slutdisponering, slam - højteknologisk (slamtørring), Mek/EL","PE",20,0]
["Slutdisponering, slam - højteknologisk (slamtørring), SRO","PE",10,0]
["Slutdisponering, slam - højteknologisk (slamtørring og -forbrænding), Konstruktioner","PE",60,0]
["Slutdisponering, slam - højteknologisk (slamtørring og -forbrænding), Mek/EL","PE",20,0]
["Slutdisponering, slam - højteknologisk (slamtørring og -forbrænding), SRO","PE",10,0]
["Renseanlæg 17"]
["Mindre renseanlæg"]
["Mindre renseanlæg < 5.000 PE uden mulighed for opdeling","PE",40,0]
["Renseanlæg >= 5.000 PE, Vandbehandling"]
["Indløb med riste, Konstruktioner","PE",60,0]
["Indløb med riste, Mek/EL","PE",20,0]
["Indløb med riste, SRO","PE",10,0]
["Sand- og fedtfang, Kontruktioner","PE",60,0]
["Sand- og fedtfang, Mek/EL","PE",20,0]
["Sand- og fedtfang, SRO","PE",10,0]
["Forklaring, Konstruktioner","PE",60,0]
["Forklaring, Mek/EL","PE",20,0]
["Forklaring, SRO","PE",10,0]
["Beluftningstanke, Konstruktioner","PE",60,0]
["Beluftningstanke, Mek/EL","PE",20,0]
["Beluftningstanke, SRO","PE",10,0]
["Efterklaringstanke, Konstruktioner","PE",60,0]
["Efterklaringstanke, Mek/El","PE",20,0]
["Efterklaringstanke, SRO","PE",10,0]
["Efterbehandlingsanlæg (sandfilter), Konstruktioner","PE",60,0]
["Efterbehandlingsanlæg (sandfilter), Mek/EL","PE",20,0]
["Efterbehandlingsanlæg (sandfilter), SRO","PE",10,0]
["Renseanlæg >= 5.000 PE, Slambehandling"]
["Forafvanding, slam, Konstruktion","PE",60,0]
["Forafvanding, slam, Mek/EL","PE",20,0]
["Forafvanding, slam, SRO","PE",10,0]
["Rådnetanke, slam, Konstruktioner","PE",60,0]
["Rådnetanke, slam, Mek/EL","PE",20,0]
["Rådnetanke, slam, SRO","PE",10,0]
["Gasdisponering, Konstruktioner","PE",60,0]
["Gasdisponering, Mek/EL","PE",20,0]
["Gasdisponering, SRO","PE",10,0]
["Gasdisponering - elproduktionsanlæg, Konstruktioner","PE",60,0]
["Gasdisponering - elproduktionsanlæg, Mek/EL","PE",20,0]
["Gasdisponering - elproduktionsanlæg, SRO","PE",10,0]
["Slutafvanding, slam - lavteknologisk (slambede), Konstruktioner","PE",60,0]
["Slutafvanding, slam - lavteknologisk (slambede), Mek/EL","PE",20,0]
["Slutafvanding, slam - lavteknologisk (slambede), SRO","PE",10,0]
["Slutafvanding, slam - højteknologisk (centrifuger), Konstruktioner","PE",60,0]
["Slutafvanding, slam - højteknologisk (centrifuger), Mek/El","PE",20,0]
["Slutafvanding, slam - højteknologisk (centrifuger), SRO","PE",10,0]
["Renseanlæg >= 5.000 PE, Slamdisponering"]
["Slutdisponering, slam - lavteknologisk (slammineralisering), Konstruktioner","PE",60,0]
["Slutdisponering, slam - lavteknologisk (slammineralisering), Mek/EL","PE",20,0]
["Slutdisponering, slam - lavteknologisk (slammineralisering), SRO","PE",10,0]
["Slutdisponering, slam - højteknologisk (slamtørring), Konstruktioner","PE",60,0]
["Slutdisponering, slam - højteknologisk (slamtørring), Mek/EL","PE",20,0]
["Slutdisponering, slam - højteknologisk (slamtørring), SRO","PE",10,0]
["Slutdisponering, slam - højteknologisk (slamtørring og -forbrænding), Konstruktioner","PE",60,0]
["Slutdisponering, slam - højteknologisk (slamtørring og -forbrænding), Mek/EL","PE",20,0]
["Slutdisponering, slam - højteknologisk (slamtørring og -forbrænding), SRO","PE",10,0]
["Renseanlæg 18"]
["Mindre renseanlæg"]
["Mindre renseanlæg < 5.000 PE uden mulighed for opdeling","PE",40,0]
["Renseanlæg >= 5.000 PE, Vandbehandling"]
["Indløb med riste, Konstruktioner","PE",60,0]
["Indløb med riste, Mek/EL","PE",20,0]
["Indløb med riste, SRO","PE",10,0]
["Sand- og fedtfang, Kontruktioner","PE",60,0]
["Sand- og fedtfang, Mek/EL","PE",20,0]
["Sand- og fedtfang, SRO","PE",10,0]
["Forklaring, Konstruktioner","PE",60,0]
["Forklaring, Mek/EL","PE",20,0]
["Forklaring, SRO","PE",10,0]
["Beluftningstanke, Konstruktioner","PE",60,0]
["Beluftningstanke, Mek/EL","PE",20,0]
["Beluftningstanke, SRO","PE",10,0]
["Efterklaringstanke, Konstruktioner","PE",60,0]
["Efterklaringstanke, Mek/El","PE",20,0]
["Efterklaringstanke, SRO","PE",10,0]
["Efterbehandlingsanlæg (sandfilter), Konstruktioner","PE",60,0]
["Efterbehandlingsanlæg (sandfilter), Mek/EL","PE",20,0]
["Efterbehandlingsanlæg (sandfilter), SRO","PE",10,0]
["Renseanlæg >= 5.000 PE, Slambehandling"]
["Forafvanding, slam, Konstruktion","PE",60,0]
["Forafvanding, slam, Mek/EL","PE",20,0]
["Forafvanding, slam, SRO","PE",10,0]
["Rådnetanke, slam, Konstruktioner","PE",60,0]
["Rådnetanke, slam, Mek/EL","PE",20,0]
["Rådnetanke, slam, SRO","PE",10,0]
["Gasdisponering, Konstruktioner","PE",60,0]
["Gasdisponering, Mek/EL","PE",20,0]
["Gasdisponering, SRO","PE",10,0]
["Gasdisponering - elproduktionsanlæg, Konstruktioner","PE",60,0]
["Gasdisponering - elproduktionsanlæg, Mek/EL","PE",20,0]
["Gasdisponering - elproduktionsanlæg, SRO","PE",10,0]
["Slutafvanding, slam - lavteknologisk (slambede), Konstruktioner","PE",60,0]
["Slutafvanding, slam - lavteknologisk (slambede), Mek/EL","PE",20,0]
["Slutafvanding, slam - lavteknologisk (slambede), SRO","PE",10,0]
["Slutafvanding, slam - højteknologisk (centrifuger), Konstruktioner","PE",60,0]
["Slutafvanding, slam - højteknologisk (centrifuger), Mek/El","PE",20,0]
["Slutafvanding, slam - højteknologisk (centrifuger), SRO","PE",10,0]
["Renseanlæg >= 5.000 PE, Slamdisponering"]
["Slutdisponering, slam - lavteknologisk (slammineralisering), Konstruktioner","PE",60,0]
["Slutdisponering, slam - lavteknologisk (slammineralisering), Mek/EL","PE",20,0]
["Slutdisponering, slam - lavteknologisk (slammineralisering), SRO","PE",10,0]
["Slutdisponering, slam - højteknologisk (slamtørring), Konstruktioner","PE",60,0]
["Slutdisponering, slam - højteknologisk (slamtørring), Mek/EL","PE",20,0]
["Slutdisponering, slam - højteknologisk (slamtørring), SRO","PE",10,0]
["Slutdisponering, slam - højteknologisk (slamtørring og -forbrænding), Konstruktioner","PE",60,0]
["Slutdisponering, slam - højteknologisk (slamtørring og -forbrænding), Mek/EL","PE",20,0]
["Slutdisponering, slam - højteknologisk (slamtørring og -forbrænding), SRO","PE",10,0]
["Renseanlæg 19"]
["Mindre renseanlæg"]
["Mindre renseanlæg < 5.000 PE uden mulighed for opdeling","PE",40,0]
["Renseanlæg >= 5.000 PE, Vandbehandling"]
["Indløb med riste, Konstruktioner","PE",60,0]
["Indløb med riste, Mek/EL","PE",20,0]
["Indløb med riste, SRO","PE",10,0]
["Sand- og fedtfang, Kontruktioner","PE",60,0]
["Sand- og fedtfang, Mek/EL","PE",20,0]
["Sand- og fedtfang, SRO","PE",10,0]
["Forklaring, Konstruktioner","PE",60,0]
["Forklaring, Mek/EL","PE",20,0]
["Forklaring, SRO","PE",10,0]
["Beluftningstanke, Konstruktioner","PE",60,0]
["Beluftningstanke, Mek/EL","PE",20,0]
["Beluftningstanke, SRO","PE",10,0]
["Efterklaringstanke, Konstruktioner","PE",60,0]
["Efterklaringstanke, Mek/El","PE",20,0]
["Efterklaringstanke, SRO","PE",10,0]
["Efterbehandlingsanlæg (sandfilter), Konstruktioner","PE",60,0]
["Efterbehandlingsanlæg (sandfilter), Mek/EL","PE",20,0]
["Efterbehandlingsanlæg (sandfilter), SRO","PE",10,0]
["Renseanlæg >= 5.000 PE, Slambehandling"]
["Forafvanding, slam, Konstruktion","PE",60,0]
["Forafvanding, slam, Mek/EL","PE",20,0]
["Forafvanding, slam, SRO","PE",10,0]
["Rådnetanke, slam, Konstruktioner","PE",60,0]
["Rådnetanke, slam, Mek/EL","PE",20,0]
["Rådnetanke, slam, SRO","PE",10,0]
["Gasdisponering, Konstruktioner","PE",60,0]
["Gasdisponering, Mek/EL","PE",20,0]
["Gasdisponering, SRO","PE",10,0]
["Gasdisponering - elproduktionsanlæg, Konstruktioner","PE",60,0]
["Gasdisponering - elproduktionsanlæg, Mek/EL","PE",20,0]
["Gasdisponering - elproduktionsanlæg, SRO","PE",10,0]
["Slutafvanding, slam - lavteknologisk (slambede), Konstruktioner","PE",60,0]
["Slutafvanding, slam - lavteknologisk (slambede), Mek/EL","PE",20,0]
["Slutafvanding, slam - lavteknologisk (slambede), SRO","PE",10,0]
["Slutafvanding, slam - højteknologisk (centrifuger), Konstruktioner","PE",60,0]
["Slutafvanding, slam - højteknologisk (centrifuger), Mek/El","PE",20,0]
["Slutafvanding, slam - højteknologisk (centrifuger), SRO","PE",10,0]
["Renseanlæg >= 5.000 PE, Slamdisponering"]
["Slutdisponering, slam - lavteknologisk (slammineralisering), Konstruktioner","PE",60,0]
["Slutdisponering, slam - lavteknologisk (slammineralisering), Mek/EL","PE",20,0]
["Slutdisponering, slam - lavteknologisk (slammineralisering), SRO","PE",10,0]
["Slutdisponering, slam - højteknologisk (slamtørring), Konstruktioner","PE",60,0]
["Slutdisponering, slam - højteknologisk (slamtørring), Mek/EL","PE",20,0]
["Slutdisponering, slam - højteknologisk (slamtørring), SRO","PE",10,0]
["Slutdisponering, slam - højteknologisk (slamtørring og -forbrænding), Konstruktioner","PE",60,0]
["Slutdisponering, slam - højteknologisk (slamtørring og -forbrænding), Mek/EL","PE",20,0]
["Slutdisponering, slam - højteknologisk (slamtørring og -forbrænding), SRO","PE",10,0]
["Renseanlæg 20"]
["Mindre renseanlæg"]
["Mindre renseanlæg < 5.000 PE uden mulighed for opdeling","PE",40,0]
["Renseanlæg >= 5.000 PE, Vandbehandling"]
["Indløb med riste, Konstruktioner","PE",60,0]
["Indløb med riste, Mek/EL","PE",20,0]
["Indløb med riste, SRO","PE",10,0]
["Sand- og fedtfang, Kontruktioner","PE",60,0]
["Sand- og fedtfang, Mek/EL","PE",20,0]
["Sand- og fedtfang, SRO","PE",10,0]
["Forklaring, Konstruktioner","PE",60,0]
["Forklaring, Mek/EL","PE",20,0]
["Forklaring, SRO","PE",10,0]
["Beluftningstanke, Konstruktioner","PE",60,0]
["Beluftningstanke, Mek/EL","PE",20,0]
["Beluftningstanke, SRO","PE",10,0]
["Efterklaringstanke, Konstruktioner","PE",60,0]
["Efterklaringstanke, Mek/El","PE",20,0]
["Efterklaringstanke, SRO","PE",10,0]
["Efterbehandlingsanlæg (sandfilter), Konstruktioner","PE",60,0]
["Efterbehandlingsanlæg (sandfilter), Mek/EL","PE",20,0]
["Efterbehandlingsanlæg (sandfilter), SRO","PE",10,0]
["Renseanlæg >= 5.000 PE, Slambehandling"]
["Forafvanding, slam, Konstruktion","PE",60,0]
["Forafvanding, slam, Mek/EL","PE",20,0]
["Forafvanding, slam, SRO","PE",10,0]
["Rådnetanke, slam, Konstruktioner","PE",60,0]
["Rådnetanke, slam, Mek/EL","PE",20,0]
["Rådnetanke, slam, SRO","PE",10,0]
["Gasdisponering, Konstruktioner","PE",60,0]
["Gasdisponering, Mek/EL","PE",20,0]
["Gasdisponering, SRO","PE",10,0]
["Gasdisponering - elproduktionsanlæg, Konstruktioner","PE",60,0]
["Gasdisponering - elproduktionsanlæg, Mek/EL","PE",20,0]
["Gasdisponering - elproduktionsanlæg, SRO","PE",10,0]
["Slutafvanding, slam - lavteknologisk (slambede), Konstruktioner","PE",60,0]
["Slutafvanding, slam - lavteknologisk (slambede), Mek/EL","PE",20,0]
["Slutafvanding, slam - lavteknologisk (slambede), SRO","PE",10,0]
["Slutafvanding, slam - højteknologisk (centrifuger), Konstruktioner","PE",60,0]
["Slutafvanding, slam - højteknologisk (centrifuger), Mek/El","PE",20,0]
["Slutafvanding, slam - højteknologisk (centrifuger), SRO","PE",10,0]
["Renseanlæg >= 5.000 PE, Slamdisponering"]
["Slutdisponering, slam - lavteknologisk (slammineralisering), Konstruktioner","PE",60,0]
["Slutdisponering, slam - lavteknologisk (slammineralisering), Mek/EL","PE",20,0]
["Slutdisponering, slam - lavteknologisk (slammineralisering), SRO","PE",10,0]
["Slutdisponering, slam - højteknologisk (slamtørring), Konstruktioner","PE",60,0]
["Slutdisponering, slam - højteknologisk (slamtørring), Mek/EL","PE",20,0]
["Slutdisponering, slam - højteknologisk (slamtørring), SRO","PE",10,0]
["Slutdisponering, slam - højteknologisk (slamtørring og -forbrænding), Konstruktioner","PE",60,0]
["Slutdisponering, slam - højteknologisk (slamtørring og -forbrænding), Mek/EL","PE",20,0]
["Slutdisponering, slam - højteknologisk (slamtørring og -forbrænding), SRO","PE",10,0]
["Renseanlæg 21"]
["Mindre renseanlæg"]
["Mindre renseanlæg < 5.000 PE uden mulighed for opdeling","PE",40,0]
["Renseanlæg >= 5.000 PE, Vandbehandling"]
["Indløb med riste, Konstruktioner","PE",60,0]
["Indløb med riste, Mek/EL","PE",20,0]
["Indløb med riste, SRO","PE",10,0]
["Sand- og fedtfang, Kontruktioner","PE",60,0]
["Sand- og fedtfang, Mek/EL","PE",20,0]
["Sand- og fedtfang, SRO","PE",10,0]
["Forklaring, Konstruktioner","PE",60,0]
["Forklaring, Mek/EL","PE",20,0]
["Forklaring, SRO","PE",10,0]
["Beluftningstanke, Konstruktioner","PE",60,0]
["Beluftningstanke, Mek/EL","PE",20,0]
["Beluftningstanke, SRO","PE",10,0]
["Efterklaringstanke, Konstruktioner","PE",60,0]
["Efterklaringstanke, Mek/El","PE",20,0]
["Efterklaringstanke, SRO","PE",10,0]
["Efterbehandlingsanlæg (sandfilter), Konstruktioner","PE",60,0]
["Efterbehandlingsanlæg (sandfilter), Mek/EL","PE",20,0]
["Efterbehandlingsanlæg (sandfilter), SRO","PE",10,0]
["Renseanlæg >= 5.000 PE, Slambehandling"]
["Forafvanding, slam, Konstruktion","PE",60,0]
["Forafvanding, slam, Mek/EL","PE",20,0]
["Forafvanding, slam, SRO","PE",10,0]
["Rådnetanke, slam, Konstruktioner","PE",60,0]
["Rådnetanke, slam, Mek/EL","PE",20,0]
["Rådnetanke, slam, SRO","PE",10,0]
["Gasdisponering, Konstruktioner","PE",60,0]
["Gasdisponering, Mek/EL","PE",20,0]
["Gasdisponering, SRO","PE",10,0]
["Gasdisponering - elproduktionsanlæg, Konstruktioner","PE",60,0]
["Gasdisponering - elproduktionsanlæg, Mek/EL","PE",20,0]
["Gasdisponering - elproduktionsanlæg, SRO","PE",10,0]
["Slutafvanding, slam - lavteknologisk (slambede), Konstruktioner","PE",60,0]
["Slutafvanding, slam - lavteknologisk (slambede), Mek/EL","PE",20,0]
["Slutafvanding, slam - lavteknologisk (slambede), SRO","PE",10,0]
["Slutafvanding, slam - højteknologisk (centrifuger), Konstruktioner","PE",60,0]
["Slutafvanding, slam - højteknologisk (centrifuger), Mek/El","PE",20,0]
["Slutafvanding, slam - højteknologisk (centrifuger), SRO","PE",10,0]
["Renseanlæg >= 5.000 PE, Slamdisponering"]
["Slutdisponering, slam - lavteknologisk (slammineralisering), Konstruktioner","PE",60,0]
["Slutdisponering, slam - lavteknologisk (slammineralisering), Mek/EL","PE",20,0]
["Slutdisponering, slam - lavteknologisk (slammineralisering), SRO","PE",10,0]
["Slutdisponering, slam - højteknologisk (slamtørring), Konstruktioner","PE",60,0]
["Slutdisponering, slam - højteknologisk (slamtørring), Mek/EL","PE",20,0]
["Slutdisponering, slam - højteknologisk (slamtørring), SRO","PE",10,0]
["Slutdisponering, slam - højteknologisk (slamtørring og -forbrænding), Konstruktioner","PE",60,0]
["Slutdisponering, slam - højteknologisk (slamtørring og -forbrænding), Mek/EL","PE",20,0]
["Slutdisponering, slam - højteknologisk (slamtørring og -forbrænding), SRO","PE",10,0]
["Renseanlæg 22"]
["Mindre renseanlæg"]
["Mindre renseanlæg < 5.000 PE uden mulighed for opdeling","PE",40,0]
["Renseanlæg >= 5.000 PE, Vandbehandling"]
["Indløb med riste, Konstruktioner","PE",60,0]
["Indløb med riste, Mek/EL","PE",20,0]
["Indløb med riste, SRO","PE",10,0]
["Sand- og fedtfang, Kontruktioner","PE",60,0]
["Sand- og fedtfang, Mek/EL","PE",20,0]
["Sand- og fedtfang, SRO","PE",10,0]
["Forklaring, Konstruktioner","PE",60,0]
["Forklaring, Mek/EL","PE",20,0]
["Forklaring, SRO","PE",10,0]
["Beluftningstanke, Konstruktioner","PE",60,0]
["Beluftningstanke, Mek/EL","PE",20,0]
["Beluftningstanke, SRO","PE",10,0]
["Efterklaringstanke, Konstruktioner","PE",60,0]
["Efterklaringstanke, Mek/El","PE",20,0]
["Efterklaringstanke, SRO","PE",10,0]
["Efterbehandlingsanlæg (sandfilter), Konstruktioner","PE",60,0]
["Efterbehandlingsanlæg (sandfilter), Mek/EL","PE",20,0]
["Efterbehandlingsanlæg (sandfilter), SRO","PE",10,0]
["Renseanlæg >= 5.000 PE, Slambehandling"]
["Forafvanding, slam, Konstruktion","PE",60,0]
["Forafvanding, slam, Mek/EL","PE",20,0]
["Forafvanding, slam, SRO","PE",10,0]
["Rådnetanke, slam, Konstruktioner","PE",60,0]
["Rådnetanke, slam, Mek/EL","PE",20,0]
["Rådnetanke, slam, SRO","PE",10,0]
["Gasdisponering, Konstruktioner","PE",60,0]
["Gasdisponering, Mek/EL","PE",20,0]
["Gasdisponering, SRO","PE",10,0]
["Gasdisponering - elproduktionsanlæg, Konstruktioner","PE",60,0]
["Gasdisponering - elproduktionsanlæg, Mek/EL","PE",20,0]
["Gasdisponering - elproduktionsanlæg, SRO","PE",10,0]
["Slutafvanding, slam - lavteknologisk (slambede), Konstruktioner","PE",60,0]
["Slutafvanding, slam - lavteknologisk (slambede), Mek/EL","PE",20,0]
["Slutafvanding, slam - lavteknologisk (slambede), SRO","PE",10,0]
["Slutafvanding, slam - højteknologisk (centrifuger), Konstruktioner","PE",60,0]
["Slutafvanding, slam - højteknologisk (centrifuger), Mek/El","PE",20,0]
["Slutafvanding, slam - højteknologisk (centrifuger), SRO","PE",10,0]
["Renseanlæg >= 5.000 PE, Slamdisponering"]
["Slutdisponering, slam - lavteknologisk (slammineralisering), Konstruktioner","PE",60,0]
["Slutdisponering, slam - lavteknologisk (slammineralisering), Mek/EL","PE",20,0]
["Slutdisponering, slam - lavteknologisk (slammineralisering), SRO","PE",10,0]
["Slutdisponering, slam - højteknologisk (slamtørring), Konstruktioner","PE",60,0]
["Slutdisponering, slam - højteknologisk (slamtørring), Mek/EL","PE",20,0]
["Slutdisponering, slam - højteknologisk (slamtørring), SRO","PE",10,0]
["Slutdisponering, slam - højteknologisk (slamtørring og -forbrænding), Konstruktioner","PE",60,0]
["Slutdisponering, slam - højteknologisk (slamtørring og -forbrænding), Mek/EL","PE",20,0]
["Slutdisponering, slam - højteknologisk (slamtørring og -forbrænding), SRO","PE",10,0]
["Mindre renseanlæg"]
["Mindre renseanlæg < 5.000 PE uden mulighed for opdeling","PE",40,0]
["Renseanlæg >= 5.000 PE, Vandbehandling"]
["Indløb med riste, Konstruktioner","PE",60,0]
["Indløb med riste, Mek/EL","PE",20,0]
["Indløb med riste, SRO","PE",10,0]
["Sand- og fedtfang, Kontruktioner","PE",60,0]
["Sand- og fedtfang, Mek/EL","PE",20,0]
["Sand- og fedtfang, SRO","PE",10,0]
["Forklaring, Konstruktioner","PE",60,0]
["Forklaring, Mek/EL","PE",20,0]
["Forklaring, SRO","PE",10,0]
["Beluftningstanke, Konstruktioner","PE",60,0]
["Beluftningstanke, Mek/EL","PE",20,0]
["Beluftningstanke, SRO","PE",10,0]
["Efterklaringstanke, Konstruktioner","PE",60,0]
["Efterklaringstanke, Mek/El","PE",20,0]
["Efterklaringstanke, SRO","PE",10,0]
["Efterbehandlingsanlæg (sandfilter), Konstruktioner","PE",60,0]
["Efterbehandlingsanlæg (sandfilter), Mek/EL","PE",20,0]
["Efterbehandlingsanlæg (sandfilter), SRO","PE",10,0]
["Renseanlæg >= 5.000 PE, Slambehandling"]
["Forafvanding, slam, Konstruktion","PE",60,0]
["Forafvanding, slam, Mek/EL","PE",20,0]
["Forafvanding, slam, SRO","PE",10,0]
["Rådnetanke, slam, Konstruktioner","PE",60,0]
["Rådnetanke, slam, Mek/EL","PE",20,0]
["Rådnetanke, slam, SRO","PE",10,0]
["Gasdisponering, Konstruktioner","PE",60,0]
["Gasdisponering, Mek/EL","PE",20,0]
["Gasdisponering, SRO","PE",10,0]
["Gasdisponering - elproduktionsanlæg, Konstruktioner","PE",60,0]
["Gasdisponering - elproduktionsanlæg, Mek/EL","PE",20,0]
["Gasdisponering - elproduktionsanlæg, SRO","PE",10,0]
["Slutafvanding, slam - lavteknologisk (slambede), Konstruktioner","PE",60,0]
["Slutafvanding, slam - lavteknologisk (slambede), Mek/EL","PE",20,0]
["Slutafvanding, slam - lavteknologisk (slambede), SRO","PE",10,0]
["Slutafvanding, slam - højteknologisk (centrifuger), Konstruktioner","PE",60,0]
["Slutafvanding, slam - højteknologisk (centrifuger), Mek/El","PE",20,0]
["Slutafvanding, slam - højteknologisk (centrifuger), SRO","PE",10,0]
["Renseanlæg >= 5.000 PE, Slamdisponering"]
["Slutdisponering, slam - lavteknologisk (slammineralisering), Konstruktioner","PE",60,0]
["Slutdisponering, slam - lavteknologisk (slammineralisering), Mek/EL","PE",20,0]
["Slutdisponering, slam - lavteknologisk (slammineralisering), SRO","PE",10,0]
["Slutdisponering, slam - højteknologisk (slamtørring), Konstruktioner","PE",60,0]
["Slutdisponering, slam - højteknologisk (slamtørring), Mek/EL","PE",20,0]
["Slutdisponering, slam - højteknologisk (slamtørring), SRO","PE",10,0]
["Slutdisponering, slam - højteknologisk (slamtørring og -forbrænding), Konstruktioner","PE",60,0]
["Slutdisponering, slam - højteknologisk (slamtørring og -forbrænding), Mek/EL","PE",20,0]
["Slutdisponering, slam - højteknologisk (slamtørring og -forbrænding), SRO","PE",10,0]
["Renseanlæg 23"]
["Mindre renseanlæg"]
["Mindre renseanlæg < 5.000 PE uden mulighed for opdeling","PE",40,0]
["Renseanlæg >= 5.000 PE, Vandbehandling"]
["Indløb med riste, Konstruktioner","PE",60,0]
["Indløb med riste, Mek/EL","PE",20,0]
["Indløb med riste, SRO","PE",10,0]
["Sand- og fedtfang, Kontruktioner","PE",60,0]
["Sand- og fedtfang, Mek/EL","PE",20,0]
["Sand- og fedtfang, SRO","PE",10,0]
["Forklaring, Konstruktioner","PE",60,0]
["Forklaring, Mek/EL","PE",20,0]
["Forklaring, SRO","PE",10,0]
["Beluftningstanke, Konstruktioner","PE",60,0]
["Beluftningstanke, Mek/EL","PE",20,0]
["Beluftningstanke, SRO","PE",10,0]
["Efterklaringstanke, Konstruktioner","PE",60,0]
["Efterklaringstanke, Mek/El","PE",20,0]
["Efterklaringstanke, SRO","PE",10,0]
["Efterbehandlingsanlæg (sandfilter), Konstruktioner","PE",60,0]
["Efterbehandlingsanlæg (sandfilter), Mek/EL","PE",20,0]
["Efterbehandlingsanlæg (sandfilter), SRO","PE",10,0]
["Renseanlæg >= 5.000 PE, Slambehandling"]
["Forafvanding, slam, Konstruktion","PE",60,0]
["Forafvanding, slam, Mek/EL","PE",20,0]
["Forafvanding, slam, SRO","PE",10,0]
["Rådnetanke, slam, Konstruktioner","PE",60,0]
["Rådnetanke, slam, Mek/EL","PE",20,0]
["Rådnetanke, slam, SRO","PE",10,0]
["Gasdisponering, Konstruktioner","PE",60,0]
["Gasdisponering, Mek/EL","PE",20,0]
["Gasdisponering, SRO","PE",10,0]
["Gasdisponering - elproduktionsanlæg, Konstruktioner","PE",60,0]
["Gasdisponering - elproduktionsanlæg, Mek/EL","PE",20,0]
["Gasdisponering - elproduktionsanlæg, SRO","PE",10,0]
["Slutafvanding, slam - lavteknologisk (slambede), Konstruktioner","PE",60,0]
["Slutafvanding, slam - lavteknologisk (slambede), Mek/EL","PE",20,0]
["Slutafvanding, slam - lavteknologisk (slambede), SRO","PE",10,0]
["Slutafvanding, slam - højteknologisk (centrifuger), Konstruktioner","PE",60,0]
["Slutafvanding, slam - højteknologisk (centrifuger), Mek/El","PE",20,0]
["Slutafvanding, slam - højteknologisk (centrifuger), SRO","PE",10,0]
["Renseanlæg >= 5.000 PE, Slamdisponering"]
["Slutdisponering, slam - lavteknologisk (slammineralisering), Konstruktioner","PE",60,0]
["Slutdisponering, slam - lavteknologisk (slammineralisering), Mek/EL","PE",20,0]
["Slutdisponering, slam - lavteknologisk (slammineralisering), SRO","PE",10,0]
["Slutdisponering, slam - højteknologisk (slamtørring), Konstruktioner","PE",60,0]
["Slutdisponering, slam - højteknologisk (slamtørring), Mek/EL","PE",20,0]
["Slutdisponering, slam - højteknologisk (slamtørring), SRO","PE",10,0]
["Slutdisponering, slam - højteknologisk (slamtørring og -forbrænding), Konstruktioner","PE",60,0]
["Slutdisponering, slam - højteknologisk (slamtørring og -forbrænding), Mek/EL","PE",20,0]
["Slutdisponering, slam - højteknologisk (slamtørring og -forbrænding), SRO","PE",10,0]
["Renseanlæg 24"]
["Mindre renseanlæg"]
["Mindre renseanlæg < 5.000 PE uden mulighed for opdeling","PE",40,0]
["Renseanlæg >= 5.000 PE, Vandbehandling"]
["Indløb med riste, Konstruktioner","PE",60,0]
["Indløb med riste, Mek/EL","PE",20,0]
["Indløb med riste, SRO","PE",10,0]
["Sand- og fedtfang, Kontruktioner","PE",60,0]
["Sand- og fedtfang, Mek/EL","PE",20,0]
["Sand- og fedtfang, SRO","PE",10,0]
["Forklaring, Konstruktioner","PE",60,0]
["Forklaring, Mek/EL","PE",20,0]
["Forklaring, SRO","PE",10,0]
["Beluftningstanke, Konstruktioner","PE",60,0]
["Beluftningstanke, Mek/EL","PE",20,0]
["Beluftningstanke, SRO","PE",10,0]
["Efterklaringstanke, Konstruktioner","PE",60,0]
["Efterklaringstanke, Mek/El","PE",20,0]
["Efterklaringstanke, SRO","PE",10,0]
["Efterbehandlingsanlæg (sandfilter), Konstruktioner","PE",60,0]
["Efterbehandlingsanlæg (sandfilter), Mek/EL","PE",20,0]
["Efterbehandlingsanlæg (sandfilter), SRO","PE",10,0]
["Renseanlæg >= 5.000 PE, Slambehandling"]
["Forafvanding, slam, Konstruktion","PE",60,0]
["Forafvanding, slam, Mek/EL","PE",20,0]
["Forafvanding, slam, SRO","PE",10,0]
["Rådnetanke, slam, Konstruktioner","PE",60,0]
["Rådnetanke, slam, Mek/EL","PE",20,0]
["Rådnetanke, slam, SRO","PE",10,0]
["Gasdisponering, Konstruktioner","PE",60,0]
["Gasdisponering, Mek/EL","PE",20,0]
["Gasdisponering, SRO","PE",10,0]
["Gasdisponering - elproduktionsanlæg, Konstruktioner","PE",60,0]
["Gasdisponering - elproduktionsanlæg, Mek/EL","PE",20,0]
["Gasdisponering - elproduktionsanlæg, SRO","PE",10,0]
["Slutafvanding, slam - lavteknologisk (slambede), Konstruktioner","PE",60,0]
["Slutafvanding, slam - lavteknologisk (slambede), Mek/EL","PE",20,0]
["Slutafvanding, slam - lavteknologisk (slambede), SRO","PE",10,0]
["Slutafvanding, slam - højteknologisk (centrifuger), Konstruktioner","PE",60,0]
["Slutafvanding, slam - højteknologisk (centrifuger), Mek/El","PE",20,0]
["Slutafvanding, slam - højteknologisk (centrifuger), SRO","PE",10,0]
["Renseanlæg >= 5.000 PE, Slamdisponering"]
["Slutdisponering, slam - lavteknologisk (slammineralisering), Konstruktioner","PE",60,0]
["Slutdisponering, slam - lavteknologisk (slammineralisering), Mek/EL","PE",20,0]
["Slutdisponering, slam - lavteknologisk (slammineralisering), SRO","PE",10,0]
["Slutdisponering, slam - højteknologisk (slamtørring), Konstruktioner","PE",60,0]
["Slutdisponering, slam - højteknologisk (slamtørring), Mek/EL","PE",20,0]
["Slutdisponering, slam - højteknologisk (slamtørring), SRO","PE",10,0]
["Slutdisponering, slam - højteknologisk (slamtørring og -forbrænding), Konstruktioner","PE",60,0]
["Slutdisponering, slam - højteknologisk (slamtørring og -forbrænding), Mek/EL","PE",20,0]
["Slutdisponering, slam - højteknologisk (slamtørring og -forbrænding), SRO","PE",10,0]
["Renseanlæg 25"]
["Mindre renseanlæg"]
["Mindre renseanlæg < 5.000 PE uden mulighed for opdeling","PE",40,0]
["Renseanlæg >= 5.000 PE, Vandbehandling"]
["Indløb med riste, Konstruktioner","PE",60,0]
["Indløb med riste, Mek/EL","PE",20,0]
["Indløb med riste, SRO","PE",10,0]
["Sand- og fedtfang, Kontruktioner","PE",60,0]
["Sand- og fedtfang, Mek/EL","PE",20,0]
["Sand- og fedtfang, SRO","PE",10,0]
["Forklaring, Konstruktioner","PE",60,0]
["Forklaring, Mek/EL","PE",20,0]
["Forklaring, SRO","PE",10,0]
["Beluftningstanke, Konstruktioner","PE",60,0]
["Beluftningstanke, Mek/EL","PE",20,0]
["Beluftningstanke, SRO","PE",10,0]
["Efterklaringstanke, Konstruktioner","PE",60,0]
["Efterklaringstanke, Mek/El","PE",20,0]
["Efterklaringstanke, SRO","PE",10,0]
["Efterbehandlingsanlæg (sandfilter), Konstruktioner","PE",60,0]
["Efterbehandlingsanlæg (sandfilter), Mek/EL","PE",20,0]
["Efterbehandlingsanlæg (sandfilter), SRO","PE",10,0]
["Renseanlæg >= 5.000 PE, Slambehandling"]
["Forafvanding, slam, Konstruktion","PE",60,0]
["Forafvanding, slam, Mek/EL","PE",20,0]
["Forafvanding, slam, SRO","PE",10,0]
["Rådnetanke, slam, Konstruktioner","PE",60,0]
["Rådnetanke, slam, Mek/EL","PE",20,0]
["Rådnetanke, slam, SRO","PE",10,0]
["Gasdisponering, Konstruktioner","PE",60,0]
["Gasdisponering, Mek/EL","PE",20,0]
["Gasdisponering, SRO","PE",10,0]
["Gasdisponering - elproduktionsanlæg, Konstruktioner","PE",60,0]
["Gasdisponering - elproduktionsanlæg, Mek/EL","PE",20,0]
["Gasdisponering - elproduktionsanlæg, SRO","PE",10,0]
["Slutafvanding, slam - lavteknologisk (slambede), Konstruktioner","PE",60,0]
["Slutafvanding, slam - lavteknologisk (slambede), Mek/EL","PE",20,0]
["Slutafvanding, slam - lavteknologisk (slambede), SRO","PE",10,0]
["Slutafvanding, slam - højteknologisk (centrifuger), Konstruktioner","PE",60,0]
["Slutafvanding, slam - højteknologisk (centrifuger), Mek/El","PE",20,0]
["Slutafvanding, slam - højteknologisk (centrifuger), SRO","PE",10,0]
["Renseanlæg >= 5.000 PE, Slamdisponering"]
["Slutdisponering, slam - lavteknologisk (slammineralisering), Konstruktioner","PE",60,0]
["Slutdisponering, slam - lavteknologisk (slammineralisering), Mek/EL","PE",20,0]
["Slutdisponering, slam - lavteknologisk (slammineralisering), SRO","PE",10,0]
["Slutdisponering, slam - højteknologisk (slamtørring), Konstruktioner","PE",60,0]
["Slutdisponering, slam - højteknologisk (slamtørring), Mek/EL","PE",20,0]
["Slutdisponering, slam - højteknologisk (slamtørring), SRO","PE",10,0]
["Slutdisponering, slam - højteknologisk (slamtørring og -forbrænding), Konstruktioner","PE",60,0]
["Slutdisponering, slam - højteknologisk (slamtørring og -forbrænding), Mek/EL","PE",20,0]
["Slutdisponering, slam - højteknologisk (slamtørring og -forbrænding), SRO","PE",10,0]
["Renseanlæg 26"]
["Mindre renseanlæg"]
["Mindre renseanlæg < 5.000 PE uden mulighed for opdeling","PE",40,0]
["Renseanlæg >= 5.000 PE, Vandbehandling"]
["Indløb med riste, Konstruktioner","PE",60,0]
["Indløb med riste, Mek/EL","PE",20,0]
["Indløb med riste, SRO","PE",10,0]
["Sand- og fedtfang, Kontruktioner","PE",60,0]
["Sand- og fedtfang, Mek/EL","PE",20,0]
["Sand- og fedtfang, SRO","PE",10,0]
["Forklaring, Konstruktioner","PE",60,0]
["Forklaring, Mek/EL","PE",20,0]
["Forklaring, SRO","PE",10,0]
["Beluftningstanke, Konstruktioner","PE",60,0]
["Beluftningstanke, Mek/EL","PE",20,0]
["Beluftningstanke, SRO","PE",10,0]
["Efterklaringstanke, Konstruktioner","PE",60,0]
["Efterklaringstanke, Mek/El","PE",20,0]
["Efterklaringstanke, SRO","PE",10,0]
["Efterbehandlingsanlæg (sandfilter), Konstruktioner","PE",60,0]
["Efterbehandlingsanlæg (sandfilter), Mek/EL","PE",20,0]
["Efterbehandlingsanlæg (sandfilter), SRO","PE",10,0]
["Renseanlæg >= 5.000 PE, Slambehandling"]
["Forafvanding, slam, Konstruktion","PE",60,0]
["Forafvanding, slam, Mek/EL","PE",20,0]
["Forafvanding, slam, SRO","PE",10,0]
["Rådnetanke, slam, Konstruktioner","PE",60,0]
["Rådnetanke, slam, Mek/EL","PE",20,0]
["Rådnetanke, slam, SRO","PE",10,0]
["Gasdisponering, Konstruktioner","PE",60,0]
["Gasdisponering, Mek/EL","PE",20,0]
["Gasdisponering, SRO","PE",10,0]
["Gasdisponering - elproduktionsanlæg, Konstruktioner","PE",60,0]
["Gasdisponering - elproduktionsanlæg, Mek/EL","PE",20,0]
["Gasdisponering - elproduktionsanlæg, SRO","PE",10,0]
["Slutafvanding, slam - lavteknologisk (slambede), Konstruktioner","PE",60,0]
["Slutafvanding, slam - lavteknologisk (slambede), Mek/EL","PE",20,0]
["Slutafvanding, slam - lavteknologisk (slambede), SRO","PE",10,0]
["Slutafvanding, slam - højteknologisk (centrifuger), Konstruktioner","PE",60,0]
["Slutafvanding, slam - højteknologisk (centrifuger), Mek/El","PE",20,0]
["Slutafvanding, slam - højteknologisk (centrifuger), SRO","PE",10,0]
["Renseanlæg >= 5.000 PE, Slamdisponering"]
["Slutdisponering, slam - lavteknologisk (slammineralisering), Konstruktioner","PE",60,0]
["Slutdisponering, slam - lavteknologisk (slammineralisering), Mek/EL","PE",20,0]
["Slutdisponering, slam - lavteknologisk (slammineralisering), SRO","PE",10,0]
["Slutdisponering, slam - højteknologisk (slamtørring), Konstruktioner","PE",60,0]
["Slutdisponering, slam - højteknologisk (slamtørring), Mek/EL","PE",20,0]
["Slutdisponering, slam - højteknologisk (slamtørring), SRO","PE",10,0]
["Slutdisponering, slam - højteknologisk (slamtørring og -forbrænding), Konstruktioner","PE",60,0]
["Slutdisponering, slam - højteknologisk (slamtørring og -forbrænding), Mek/EL","PE",20,0]
["Slutdisponering, slam - højteknologisk (slamtørring og -forbrænding), SRO","PE",10,0]
["Renseanlæg 27"]
["Mindre renseanlæg"]
["Mindre renseanlæg < 5.000 PE uden mulighed for opdeling","PE",40,0]
["Renseanlæg >= 5.000 PE, Vandbehandling"]
["Indløb med riste, Konstruktioner","PE",60,0]
["Indløb med riste, Mek/EL","PE",20,0]
["Indløb med riste, SRO","PE",10,0]
["Sand- og fedtfang, Kontruktioner","PE",60,0]
["Sand- og fedtfang, Mek/EL","PE",20,0]
["Sand- og fedtfang, SRO","PE",10,0]
["Forklaring, Konstruktioner","PE",60,0]
["Forklaring, Mek/EL","PE",20,0]
["Forklaring, SRO","PE",10,0]
["Beluftningstanke, Konstruktioner","PE",60,0]
["Beluftningstanke, Mek/EL","PE",20,0]
["Beluftningstanke, SRO","PE",10,0]
["Efterklaringstanke, Konstruktioner","PE",60,0]
["Efterklaringstanke, Mek/El","PE",20,0]
["Efterklaringstanke, SRO","PE",10,0]
["Efterbehandlingsanlæg (sandfilter), Konstruktioner","PE",60,0]
["Efterbehandlingsanlæg (sandfilter), Mek/EL","PE",20,0]
["Efterbehandlingsanlæg (sandfilter), SRO","PE",10,0]
["Renseanlæg >= 5.000 PE, Slambehandling"]
["Forafvanding, slam, Konstruktion","PE",60,0]
["Forafvanding, slam, Mek/EL","PE",20,0]
["Forafvanding, slam, SRO","PE",10,0]
["Rådnetanke, slam, Konstruktioner","PE",60,0]
["Rådnetanke, slam, Mek/EL","PE",20,0]
["Rådnetanke, slam, SRO","PE",10,0]
["Gasdisponering, Konstruktioner","PE",60,0]
["Gasdisponering, Mek/EL","PE",20,0]
["Gasdisponering, SRO","PE",10,0]
["Gasdisponering - elproduktionsanlæg, Konstruktioner","PE",60,0]
["Gasdisponering - elproduktionsanlæg, Mek/EL","PE",20,0]
["Gasdisponering - elproduktionsanlæg, SRO","PE",10,0]
["Slutafvanding, slam - lavteknologisk (slambede), Konstruktioner","PE",60,0]
["Slutafvanding, slam - lavteknologisk (slambede), Mek/EL","PE",20,0]
["Slutafvanding, slam - lavteknologisk (slambede), SRO","PE",10,0]
["Slutafvanding, slam - højteknologisk (centrifuger), Konstruktioner","PE",60,0]
["Slutafvanding, slam - højteknologisk (centrifuger), Mek/El","PE",20,0]
["Slutafvanding, slam - højteknologisk (centrifuger), SRO","PE",10,0]
["Renseanlæg >= 5.000 PE, Slamdisponering"]
["Slutdisponering, slam - lavteknologisk (slammineralisering), Konstruktioner","PE",60,0]
["Slutdisponering, slam - lavteknologisk (slammineralisering), Mek/EL","PE",20,0]
["Slutdisponering, slam - lavteknologisk (slammineralisering), SRO","PE",10,0]
["Slutdisponering, slam - højteknologisk (slamtørring), Konstruktioner","PE",60,0]
["Slutdisponering, slam - højteknologisk (slamtørring), Mek/EL","PE",20,0]
["Slutdisponering, slam - højteknologisk (slamtørring), SRO","PE",10,0]
["Slutdisponering, slam - højteknologisk (slamtørring og -forbrænding), Konstruktioner","PE",60,0]
["Slutdisponering, slam - højteknologisk (slamtørring og -forbrænding), Mek/EL","PE",20,0]
["Slutdisponering, slam - højteknologisk (slamtørring og -forbrænding), SRO","PE",10,0]
["Renseanlæg 28"]
["Mindre renseanlæg"]
["Mindre renseanlæg < 5.000 PE uden mulighed for opdeling","PE",40,0]
["Renseanlæg >= 5.000 PE, Vandbehandling"]
["Indløb med riste, Konstruktioner","PE",60,0]
["Indløb med riste, Mek/EL","PE",20,0]
["Indløb med riste, SRO","PE",10,0]
["Sand- og fedtfang, Kontruktioner","PE",60,0]
["Sand- og fedtfang, Mek/EL","PE",20,0]
["Sand- og fedtfang, SRO","PE",10,0]
["Forklaring, Konstruktioner","PE",60,0]
["Forklaring, Mek/EL","PE",20,0]
["Forklaring, SRO","PE",10,0]
["Beluftningstanke, Konstruktioner","PE",60,0]
["Beluftningstanke, Mek/EL","PE",20,0]
["Beluftningstanke, SRO","PE",10,0]
["Efterklaringstanke, Konstruktioner","PE",60,0]
["Efterklaringstanke, Mek/El","PE",20,0]
["Efterklaringstanke, SRO","PE",10,0]
["Efterbehandlingsanlæg (sandfilter), Konstruktioner","PE",60,0]
["Efterbehandlingsanlæg (sandfilter), Mek/EL","PE",20,0]
["Efterbehandlingsanlæg (sandfilter), SRO","PE",10,0]
["Renseanlæg >= 5.000 PE, Slambehandling"]
["Forafvanding, slam, Konstruktion","PE",60,0]
["Forafvanding, slam, Mek/EL","PE",20,0]
["Forafvanding, slam, SRO","PE",10,0]
["Rådnetanke, slam, Konstruktioner","PE",60,0]
["Rådnetanke, slam, Mek/EL","PE",20,0]
["Rådnetanke, slam, SRO","PE",10,0]
["Gasdisponering, Konstruktioner","PE",60,0]
["Gasdisponering, Mek/EL","PE",20,0]
["Gasdisponering, SRO","PE",10,0]
["Gasdisponering - elproduktionsanlæg, Konstruktioner","PE",60,0]
["Gasdisponering - elproduktionsanlæg, Mek/EL","PE",20,0]
["Gasdisponering - elproduktionsanlæg, SRO","PE",10,0]
["Slutafvanding, slam - lavteknologisk (slambede), Konstruktioner","PE",60,0]
["Slutafvanding, slam - lavteknologisk (slambede), Mek/EL","PE",20,0]
["Slutafvanding, slam - lavteknologisk (slambede), SRO","PE",10,0]
["Slutafvanding, slam - højteknologisk (centrifuger), Konstruktioner","PE",60,0]
["Slutafvanding, slam - højteknologisk (centrifuger), Mek/El","PE",20,0]
["Slutafvanding, slam - højteknologisk (centrifuger), SRO","PE",10,0]
["Renseanlæg >= 5.000 PE, Slamdisponering"]
["Slutdisponering, slam - lavteknologisk (slammineralisering), Konstruktioner","PE",60,0]
["Slutdisponering, slam - lavteknologisk (slammineralisering), Mek/EL","PE",20,0]
["Slutdisponering, slam - lavteknologisk (slammineralisering), SRO","PE",10,0]
["Slutdisponering, slam - højteknologisk (slamtørring), Konstruktioner","PE",60,0]
["Slutdisponering, slam - højteknologisk (slamtørring), Mek/EL","PE",20,0]
["Slutdisponering, slam - højteknologisk (slamtørring), SRO","PE",10,0]
["Slutdisponering, slam - højteknologisk (slamtørring og -forbrænding), Konstruktioner","PE",60,0]
["Slutdisponering, slam - højteknologisk (slamtørring og -forbrænding), Mek/EL","PE",20,0]
["Slutdisponering, slam - højteknologisk (slamtørring og -forbrænding), SRO","PE",10,0]
["Renseanlæg 29"]
["Mindre renseanlæg"]
["Mindre renseanlæg < 5.000 PE uden mulighed for opdeling","PE",40,0]
["Renseanlæg >= 5.000 PE, Vandbehandling"]
["Indløb med riste, Konstruktioner","PE",60,0]
["Indløb med riste, Mek/EL","PE",20,0]
["Indløb med riste, SRO","PE",10,0]
["Sand- og fedtfang, Kontruktioner","PE",60,0]
["Sand- og fedtfang, Mek/EL","PE",20,0]
["Sand- og fedtfang, SRO","PE",10,0]
["Forklaring, Konstruktioner","PE",60,0]
["Forklaring, Mek/EL","PE",20,0]
["Forklaring, SRO","PE",10,0]
["Beluftningstanke, Konstruktioner","PE",60,0]
["Beluftningstanke, Mek/EL","PE",20,0]
["Beluftningstanke, SRO","PE",10,0]
["Efterklaringstanke, Konstruktioner","PE",60,0]
["Efterklaringstanke, Mek/El","PE",20,0]
["Efterklaringstanke, SRO","PE",10,0]
["Efterbehandlingsanlæg (sandfilter), Konstruktioner","PE",60,0]
["Efterbehandlingsanlæg (sandfilter), Mek/EL","PE",20,0]
["Efterbehandlingsanlæg (sandfilter), SRO","PE",10,0]
["Renseanlæg >= 5.000 PE, Slambehandling"]
["Forafvanding, slam, Konstruktion","PE",60,0]
["Forafvanding, slam, Mek/EL","PE",20,0]
["Forafvanding, slam, SRO","PE",10,0]
["Rådnetanke, slam, Konstruktioner","PE",60,0]
["Rådnetanke, slam, Mek/EL","PE",20,0]
["Rådnetanke, slam, SRO","PE",10,0]
["Gasdisponering, Konstruktioner","PE",60,0]
["Gasdisponering, Mek/EL","PE",20,0]
["Gasdisponering, SRO","PE",10,0]
["Gasdisponering - elproduktionsanlæg, Konstruktioner","PE",60,0]
["Gasdisponering - elproduktionsanlæg, Mek/EL","PE",20,0]
["Gasdisponering - elproduktionsanlæg, SRO","PE",10,0]
["Slutafvanding, slam - lavteknologisk (slambede), Konstruktioner","PE",60,0]
["Slutafvanding, slam - lavteknologisk (slambede), Mek/EL","PE",20,0]
["Slutafvanding, slam - lavteknologisk (slambede), SRO","PE",10,0]
["Slutafvanding, slam - højteknologisk (centrifuger), Konstruktioner","PE",60,0]
["Slutafvanding, slam - højteknologisk (centrifuger), Mek/El","PE",20,0]
["Slutafvanding, slam - højteknologisk (centrifuger), SRO","PE",10,0]
["Renseanlæg >= 5.000 PE, Slamdisponering"]
["Slutdisponering, slam - lavteknologisk (slammineralisering), Konstruktioner","PE",60,0]
["Slutdisponering, slam - lavteknologisk (slammineralisering), Mek/EL","PE",20,0]
["Slutdisponering, slam - lavteknologisk (slammineralisering), SRO","PE",10,0]
["Slutdisponering, slam - højteknologisk (slamtørring), Konstruktioner","PE",60,0]
["Slutdisponering, slam - højteknologisk (slamtørring), Mek/EL","PE",20,0]
["Slutdisponering, slam - højteknologisk (slamtørring), SRO","PE",10,0]
["Slutdisponering, slam - højteknologisk (slamtørring og -forbrænding), Konstruktioner","PE",60,0]
["Slutdisponering, slam - højteknologisk (slamtørring og -forbrænding), Mek/EL","PE",20,0]
["Slutdisponering, slam - højteknologisk (slamtørring og -forbrænding), SRO","PE",10,0]
["Renseanlæg 30"]
["Mindre renseanlæg"]
["Mindre renseanlæg < 5.000 PE uden mulighed for opdeling","PE",40,0]
["Renseanlæg >= 5.000 PE, Vandbehandling"]
["Indløb med riste, Konstruktioner","PE",60,0]
["Indløb med riste, Mek/EL","PE",20,0]
["Indløb med riste, SRO","PE",10,0]
["Sand- og fedtfang, Kontruktioner","PE",60,0]
["Sand- og fedtfang, Mek/EL","PE",20,0]
["Sand- og fedtfang, SRO","PE",10,0]
["Forklaring, Konstruktioner","PE",60,0]
["Forklaring, Mek/EL","PE",20,0]
["Forklaring, SRO","PE",10,0]
["Beluftningstanke, Konstruktioner","PE",60,0]
["Beluftningstanke, Mek/EL","PE",20,0]
["Beluftningstanke, SRO","PE",10,0]
["Efterklaringstanke, Konstruktioner","PE",60,0]
["Efterklaringstanke, Mek/El","PE",20,0]
["Efterklaringstanke, SRO","PE",10,0]
["Efterbehandlingsanlæg (sandfilter), Konstruktioner","PE",60,0]
["Efterbehandlingsanlæg (sandfilter), Mek/EL","PE",20,0]
["Efterbehandlingsanlæg (sandfilter), SRO","PE",10,0]
["Renseanlæg >= 5.000 PE, Slambehandling"]
["Forafvanding, slam, Konstruktion","PE",60,0]
["Forafvanding, slam, Mek/EL","PE",20,0]
["Forafvanding, slam, SRO","PE",10,0]
["Rådnetanke, slam, Konstruktioner","PE",60,0]
["Rådnetanke, slam, Mek/EL","PE",20,0]
["Rådnetanke, slam, SRO","PE",10,0]
["Gasdisponering, Konstruktioner","PE",60,0]
["Gasdisponering, Mek/EL","PE",20,0]
["Gasdisponering, SRO","PE",10,0]
["Gasdisponering - elproduktionsanlæg, Konstruktioner","PE",60,0]
["Gasdisponering - elproduktionsanlæg, Mek/EL","PE",20,0]
["Gasdisponering - elproduktionsanlæg, SRO","PE",10,0]
["Slutafvanding, slam - lavteknologisk (slambede), Konstruktioner","PE",60,0]
["Slutafvanding, slam - lavteknologisk (slambede), Mek/EL","PE",20,0]
["Slutafvanding, slam - lavteknologisk (slambede), SRO","PE",10,0]
["Slutafvanding, slam - højteknologisk (centrifuger), Konstruktioner","PE",60,0]
["Slutafvanding, slam - højteknologisk (centrifuger), Mek/El","PE",20,0]
["Slutafvanding, slam - højteknologisk (centrifuger), SRO","PE",10,0]
["Renseanlæg >= 5.000 PE, Slamdisponering"]
["Slutdisponering, slam - lavteknologisk (slammineralisering), Konstruktioner","PE",60,0]
["Slutdisponering, slam - lavteknologisk (slammineralisering), Mek/EL","PE",20,0]
["Slutdisponering, slam - lavteknologisk (slammineralisering), SRO","PE",10,0]
["Slutdisponering, slam - højteknologisk (slamtørring), Konstruktioner","PE",60,0]
["Slutdisponering, slam - højteknologisk (slamtørring), Mek/EL","PE",20,0]
["Slutdisponering, slam - højteknologisk (slamtørring), SRO","PE",10,0]
["Slutdisponering, slam - højteknologisk (slamtørring og -forbrænding), Konstruktioner","PE",60,0]
["Slutdisponering, slam - højteknologisk (slamtørring og -forbrænding), Mek/EL","PE",20,0]
["Slutdisponering, slam - højteknologisk (slamtørring og -forbrænding), SRO","PE",10,0]
["Renseanlæg 31"]
["Mindre renseanlæg"]
["Mindre renseanlæg < 5.000 PE uden mulighed for opdeling","PE",40,0]
["Renseanlæg >= 5.000 PE, Vandbehandling"]
["Indløb med riste, Konstruktioner","PE",60,0]
["Indløb med riste, Mek/EL","PE",20,0]
["Indløb med riste, SRO","PE",10,0]
["Sand- og fedtfang, Kontruktioner","PE",60,0]
["Sand- og fedtfang, Mek/EL","PE",20,0]
["Sand- og fedtfang, SRO","PE",10,0]
["Forklaring, Konstruktioner","PE",60,0]
["Forklaring, Mek/EL","PE",20,0]
["Forklaring, SRO","PE",10,0]
["Beluftningstanke, Konstruktioner","PE",60,0]
["Beluftningstanke, Mek/EL","PE",20,0]
["Beluftningstanke, SRO","PE",10,0]
["Efterklaringstanke, Konstruktioner","PE",60,0]
["Efterklaringstanke, Mek/El","PE",20,0]
["Efterklaringstanke, SRO","PE",10,0]
["Efterbehandlingsanlæg (sandfilter), Konstruktioner","PE",60,0]
["Efterbehandlingsanlæg (sandfilter), Mek/EL","PE",20,0]
["Efterbehandlingsanlæg (sandfilter), SRO","PE",10,0]
["Renseanlæg >= 5.000 PE, Slambehandling"]
["Forafvanding, slam, Konstruktion","PE",60,0]
["Forafvanding, slam, Mek/EL","PE",20,0]
["Forafvanding, slam, SRO","PE",10,0]
["Rådnetanke, slam, Konstruktioner","PE",60,0]
["Rådnetanke, slam, Mek/EL","PE",20,0]
["Rådnetanke, slam, SRO","PE",10,0]
["Gasdisponering, Konstruktioner","PE",60,0]
["Gasdisponering, Mek/EL","PE",20,0]
["Gasdisponering, SRO","PE",10,0]
["Gasdisponering - elproduktionsanlæg, Konstruktioner","PE",60,0]
["Gasdisponering - elproduktionsanlæg, Mek/EL","PE",20,0]
["Gasdisponering - elproduktionsanlæg, SRO","PE",10,0]
["Slutafvanding, slam - lavteknologisk (slambede), Konstruktioner","PE",60,0]
["Slutafvanding, slam - lavteknologisk (slambede), Mek/EL","PE",20,0]
["Slutafvanding, slam - lavteknologisk (slambede), SRO","PE",10,0]
["Slutafvanding, slam - højteknologisk (centrifuger), Konstruktioner","PE",60,0]
["Slutafvanding, slam - højteknologisk (centrifuger), Mek/El","PE",20,0]
["Slutafvanding, slam - højteknologisk (centrifuger), SRO","PE",10,0]
["Renseanlæg >= 5.000 PE, Slamdisponering"]
["Slutdisponering, slam - lavteknologisk (slammineralisering), Konstruktioner","PE",60,0]
["Slutdisponering, slam - lavteknologisk (slammineralisering), Mek/EL","PE",20,0]
["Slutdisponering, slam - lavteknologisk (slammineralisering), SRO","PE",10,0]
["Slutdisponering, slam - højteknologisk (slamtørring), Konstruktioner","PE",60,0]
["Slutdisponering, slam - højteknologisk (slamtørring), Mek/EL","PE",20,0]
["Slutdisponering, slam - højteknologisk (slamtørring), SRO","PE",10,0]
["Slutdisponering, slam - højteknologisk (slamtørring og -forbrænding), Konstruktioner","PE",60,0]
["Slutdisponering, slam - højteknologisk (slamtørring og -forbrænding), Mek/EL","PE",20,0]
["Slutdisponering, slam - højteknologisk (slamtørring og -forbrænding), SRO","PE",10,0]
["Renseanlæg 32"]
["Mindre renseanlæg"]
["Mindre renseanlæg < 5.000 PE uden mulighed for opdeling","PE",40,0]
["Renseanlæg >= 5.000 PE, Vandbehandling"]
["Indløb med riste, Konstruktioner","PE",60,0]
["Indløb med riste, Mek/EL","PE",20,0]
["Indløb med riste, SRO","PE",10,0]
["Sand- og fedtfang, Kontruktioner","PE",60,0]
["Sand- og fedtfang, Mek/EL","PE",20,0]
["Sand- og fedtfang, SRO","PE",10,0]
["Forklaring, Konstruktioner","PE",60,0]
["Forklaring, Mek/EL","PE",20,0]
["Forklaring, SRO","PE",10,0]
["Beluftningstanke, Konstruktioner","PE",60,0]
["Beluftningstanke, Mek/EL","PE",20,0]
["Beluftningstanke, SRO","PE",10,0]
["Efterklaringstanke, Konstruktioner","PE",60,0]
["Efterklaringstanke, Mek/El","PE",20,0]
["Efterklaringstanke, SRO","PE",10,0]
["Efterbehandlingsanlæg (sandfilter), Konstruktioner","PE",60,0]
["Efterbehandlingsanlæg (sandfilter), Mek/EL","PE",20,0]
["Efterbehandlingsanlæg (sandfilter), SRO","PE",10,0]
["Renseanlæg >= 5.000 PE, Slambehandling"]
["Forafvanding, slam, Konstruktion","PE",60,0]
["Forafvanding, slam, Mek/EL","PE",20,0]
["Forafvanding, slam, SRO","PE",10,0]
["Rådnetanke, slam, Konstruktioner","PE",60,0]
["Rådnetanke, slam, Mek/EL","PE",20,0]
["Rådnetanke, slam, SRO","PE",10,0]
["Gasdisponering, Konstruktioner","PE",60,0]
["Gasdisponering, Mek/EL","PE",20,0]
["Gasdisponering, SRO","PE",10,0]
["Gasdisponering - elproduktionsanlæg, Konstruktioner","PE",60,0]
["Gasdisponering - elproduktionsanlæg, Mek/EL","PE",20,0]
["Gasdisponering - elproduktionsanlæg, SRO","PE",10,0]
["Slutafvanding, slam - lavteknologisk (slambede), Konstruktioner","PE",60,0]
["Slutafvanding, slam - lavteknologisk (slambede), Mek/EL","PE",20,0]
["Slutafvanding, slam - lavteknologisk (slambede), SRO","PE",10,0]
["Slutafvanding, slam - højteknologisk (centrifuger), Konstruktioner","PE",60,0]
["Slutafvanding, slam - højteknologisk (centrifuger), Mek/El","PE",20,0]
["Slutafvanding, slam - højteknologisk (centrifuger), SRO","PE",10,0]
["Renseanlæg >= 5.000 PE, Slamdisponering"]
["Slutdisponering, slam - lavteknologisk (slammineralisering), Konstruktioner","PE",60,0]
["Slutdisponering, slam - lavteknologisk (slammineralisering), Mek/EL","PE",20,0]
["Slutdisponering, slam - lavteknologisk (slammineralisering), SRO","PE",10,0]
["Slutdisponering, slam - højteknologisk (slamtørring), Konstruktioner","PE",60,0]
["Slutdisponering, slam - højteknologisk (slamtørring), Mek/EL","PE",20,0]
["Slutdisponering, slam - højteknologisk (slamtørring), SRO","PE",10,0]
["Slutdisponering, slam - højteknologisk (slamtørring og -forbrænding), Konstruktioner","PE",60,0]
["Slutdisponering, slam - højteknologisk (slamtørring og -forbrænding), Mek/EL","PE",20,0]
["Slutdisponering, slam - højteknologisk (slamtørring og -forbrænding), SRO","PE",10,0]
["Mindre renseanlæg"]
["Mindre renseanlæg < 5.000 PE uden mulighed for opdeling","PE",40,0]
["Renseanlæg >= 5.000 PE, Vandbehandling"]
["Indløb med riste, Konstruktioner","PE",60,0]
["Indløb med riste, Mek/EL","PE",20,0]
["Indløb med riste, SRO","PE",10,0]
["Sand- og fedtfang, Kontruktioner","PE",60,0]
["Sand- og fedtfang, Mek/EL","PE",20,0]
["Sand- og fedtfang, SRO","PE",10,0]
["Forklaring, Konstruktioner","PE",60,0]
["Forklaring, Mek/EL","PE",20,0]
["Forklaring, SRO","PE",10,0]
["Beluftningstanke, Konstruktioner","PE",60,0]
["Beluftningstanke, Mek/EL","PE",20,0]
["Beluftningstanke, SRO","PE",10,0]
["Efterklaringstanke, Konstruktioner","PE",60,0]
["Efterklaringstanke, Mek/El","PE",20,0]
["Efterklaringstanke, SRO","PE",10,0]
["Efterbehandlingsanlæg (sandfilter), Konstruktioner","PE",60,0]
["Efterbehandlingsanlæg (sandfilter), Mek/EL","PE",20,0]
["Efterbehandlingsanlæg (sandfilter), SRO","PE",10,0]
["Renseanlæg >= 5.000 PE, Slambehandling"]
["Forafvanding, slam, Konstruktion","PE",60,0]
["Forafvanding, slam, Mek/EL","PE",20,0]
["Forafvanding, slam, SRO","PE",10,0]
["Rådnetanke, slam, Konstruktioner","PE",60,0]
["Rådnetanke, slam, Mek/EL","PE",20,0]
["Rådnetanke, slam, SRO","PE",10,0]
["Gasdisponering, Konstruktioner","PE",60,0]
["Gasdisponering, Mek/EL","PE",20,0]
["Gasdisponering, SRO","PE",10,0]
["Gasdisponering - elproduktionsanlæg, Konstruktioner","PE",60,0]
["Gasdisponering - elproduktionsanlæg, Mek/EL","PE",20,0]
["Gasdisponering - elproduktionsanlæg, SRO","PE",10,0]
["Slutafvanding, slam - lavteknologisk (slambede), Konstruktioner","PE",60,0]
["Slutafvanding, slam - lavteknologisk (slambede), Mek/EL","PE",20,0]
["Slutafvanding, slam - lavteknologisk (slambede), SRO","PE",10,0]
["Slutafvanding, slam - højteknologisk (centrifuger), Konstruktioner","PE",60,0]
["Slutafvanding, slam - højteknologisk (centrifuger), Mek/El","PE",20,0]
["Slutafvanding, slam - højteknologisk (centrifuger), SRO","PE",10,0]
["Renseanlæg >= 5.000 PE, Slamdisponering"]
["Slutdisponering, slam - lavteknologisk (slammineralisering), Konstruktioner","PE",60,0]
["Slutdisponering, slam - lavteknologisk (slammineralisering), Mek/EL","PE",20,0]
["Slutdisponering, slam - lavteknologisk (slammineralisering), SRO","PE",10,0]
["Slutdisponering, slam - højteknologisk (slamtørring), Konstruktioner","PE",60,0]
["Slutdisponering, slam - højteknologisk (slamtørring), Mek/EL","PE",20,0]
["Slutdisponering, slam - højteknologisk (slamtørring), SRO","PE",10,0]
["Slutdisponering, slam - højteknologisk (slamtørring og -forbrænding), Konstruktioner","PE",60,0]
["Slutdisponering, slam - højteknologisk (slamtørring og -forbrænding), Mek/EL","PE",20,0]
["Slutdisponering, slam - højteknologisk (slamtørring og -forbrænding), SRO","PE",10,0]
[]
["Renseanlæg 33"]
["Mindre renseanlæg"]
["Mindre renseanlæg < 5.000 PE uden mulighed for opdeling","PE",40,0]
["Renseanlæg >= 5.000 PE, Vandbehandling"]
["Indløb med riste, Konstruktioner","PE",60,0]
["Indløb med riste, Mek/EL","PE",20,0]
["Indløb med riste, SRO","PE",10,0]
["Sand- og fedtfang, Kontruktioner","PE",60,0]
["Sand- og fedtfang, Mek/EL","PE",20,0]
["Sand- og fedtfang, SRO","PE",10,0]
["Forklaring, Konstruktioner","PE",60,0]
["Forklaring, Mek/EL","PE",20,0]
["Forklaring, SRO","PE",10,0]
["Beluftningstanke, Konstruktioner","PE",60,0]
["Beluftningstanke, Mek/EL","PE",20,0]
["Beluftningstanke, SRO","PE",10,0]
["Efterklaringstanke, Konstruktioner","PE",60,0]
["Efterklaringstanke, Mek/El","PE",20,0]
["Efterklaringstanke, SRO","PE",10,0]
["Efterbehandlingsanlæg (sandfilter), Konstruktioner","PE",60,0]
["Efterbehandlingsanlæg (sandfilter), Mek/EL","PE",20,0]
["Efterbehandlingsanlæg (sandfilter), SRO","PE",10,0]
["Renseanlæg >= 5.000 PE, Slambehandling"]
["Forafvanding, slam, Konstruktion","PE",60,0]
["Forafvanding, slam, Mek/EL","PE",20,0]
["Forafvanding, slam, SRO","PE",10,0]
["Rådnetanke, slam, Konstruktioner","PE",60,0]
["Rådnetanke, slam, Mek/EL","PE",20,0]
["Rådnetanke, slam, SRO","PE",10,0]
["Gasdisponering, Konstruktioner","PE",60,0]
["Gasdisponering, Mek/EL","PE",20,0]
["Gasdisponering, SRO","PE",10,0]
["Gasdisponering - elproduktionsanlæg, Konstruktioner","PE",60,0]
["Gasdisponering - elproduktionsanlæg, Mek/EL","PE",20,0]
["Gasdisponering - elproduktionsanlæg, SRO","PE",10,0]
["Slutafvanding, slam - lavteknologisk (slambede), Konstruktioner","PE",60,0]
["Slutafvanding, slam - lavteknologisk (slambede), Mek/EL","PE",20,0]
["Slutafvanding, slam - lavteknologisk (slambede), SRO","PE",10,0]
["Slutafvanding, slam - højteknologisk (centrifuger), Konstruktioner","PE",60,0]
["Slutafvanding, slam - højteknologisk (centrifuger), Mek/El","PE",20,0]
["Slutafvanding, slam - højteknologisk (centrifuger), SRO","PE",10,0]
["Renseanlæg >= 5.000 PE, Slamdisponering"]
["Slutdisponering, slam - lavteknologisk (slammineralisering), Konstruktioner","PE",60,0]
["Slutdisponering, slam - lavteknologisk (slammineralisering), Mek/EL","PE",20,0]
["Slutdisponering, slam - lavteknologisk (slammineralisering), SRO","PE",10,0]
["Slutdisponering, slam - højteknologisk (slamtørring), Konstruktioner","PE",60,0]
["Slutdisponering, slam - højteknologisk (slamtørring), Mek/EL","PE",20,0]
["Slutdisponering, slam - højteknologisk (slamtørring), SRO","PE",10,0]
["Slutdisponering, slam - højteknologisk (slamtørring og -forbrænding), Konstruktioner","PE",60,0]
["Slutdisponering, slam - højteknologisk (slamtørring og -forbrænding), Mek/EL","PE",20,0]
["Slutdisponering, slam - højteknologisk (slamtørring og -forbrænding), SRO","PE",10,0]
["Renseanlæg 34"]
["Mindre renseanlæg"]
["Mindre renseanlæg < 5.000 PE uden mulighed for opdeling","PE",40,0]
["Renseanlæg >= 5.000 PE, Vandbehandling"]
["Indløb med riste, Konstruktioner","PE",60,0]
["Indløb med riste, Mek/EL","PE",20,0]
["Indløb med riste, SRO","PE",10,0]
["Sand- og fedtfang, Kontruktioner","PE",60,0]
["Sand- og fedtfang, Mek/EL","PE",20,0]
["Sand- og fedtfang, SRO","PE",10,0]
["Forklaring, Konstruktioner","PE",60,0]
["Forklaring, Mek/EL","PE",20,0]
["Forklaring, SRO","PE",10,0]
["Beluftningstanke, Konstruktioner","PE",60,0]
["Beluftningstanke, Mek/EL","PE",20,0]
["Beluftningstanke, SRO","PE",10,0]
["Efterklaringstanke, Konstruktioner","PE",60,0]
["Efterklaringstanke, Mek/El","PE",20,0]
["Efterklaringstanke, SRO","PE",10,0]
["Efterbehandlingsanlæg (sandfilter), Konstruktioner","PE",60,0]
["Efterbehandlingsanlæg (sandfilter), Mek/EL","PE",20,0]
["Efterbehandlingsanlæg (sandfilter), SRO","PE",10,0]
["Renseanlæg >= 5.000 PE, Slambehandling"]
["Forafvanding, slam, Konstruktion","PE",60,0]
["Forafvanding, slam, Mek/EL","PE",20,0]
["Forafvanding, slam, SRO","PE",10,0]
["Rådnetanke, slam, Konstruktioner","PE",60,0]
["Rådnetanke, slam, Mek/EL","PE",20,0]
["Rådnetanke, slam, SRO","PE",10,0]
["Gasdisponering, Konstruktioner","PE",60,0]
["Gasdisponering, Mek/EL","PE",20,0]
["Gasdisponering, SRO","PE",10,0]
["Gasdisponering - elproduktionsanlæg, Konstruktioner","PE",60,0]
["Gasdisponering - elproduktionsanlæg, Mek/EL","PE",20,0]
["Gasdisponering - elproduktionsanlæg, SRO","PE",10,0]
["Slutafvanding, slam - lavteknologisk (slambede), Konstruktioner","PE",60,0]
["Slutafvanding, slam - lavteknologisk (slambede), Mek/EL","PE",20,0]
["Slutafvanding, slam - lavteknologisk (slambede), SRO","PE",10,0]
["Slutafvanding, slam - højteknologisk (centrifuger), Konstruktioner","PE",60,0]
["Slutafvanding, slam - højteknologisk (centrifuger), Mek/El","PE",20,0]
["Slutafvanding, slam - højteknologisk (centrifuger), SRO","PE",10,0]
["Renseanlæg >= 5.000 PE, Slamdisponering"]
["Slutdisponering, slam - lavteknologisk (slammineralisering), Konstruktioner","PE",60,0]
["Slutdisponering, slam - lavteknologisk (slammineralisering), Mek/EL","PE",20,0]
["Slutdisponering, slam - lavteknologisk (slammineralisering), SRO","PE",10,0]
["Slutdisponering, slam - højteknologisk (slamtørring), Konstruktioner","PE",60,0]
["Slutdisponering, slam - højteknologisk (slamtørring), Mek/EL","PE",20,0]
["Slutdisponering, slam - højteknologisk (slamtørring), SRO","PE",10,0]
["Slutdisponering, slam - højteknologisk (slamtørring og -forbrænding), Konstruktioner","PE",60,0]
["Slutdisponering, slam - højteknologisk (slamtørring og -forbrænding), Mek/EL","PE",20,0]
["Slutdisponering, slam - højteknologisk (slamtørring og -forbrænding), SRO","PE",10,0]
["Renseanlæg 35"]
["Mindre renseanlæg"]
["Mindre renseanlæg < 5.000 PE uden mulighed for opdeling","PE",40,0]
["Renseanlæg >= 5.000 PE, Vandbehandling"]
["Indløb med riste, Konstruktioner","PE",60,0]
["Indløb med riste, Mek/EL","PE",20,0]
["Indløb med riste, SRO","PE",10,0]
["Sand- og fedtfang, Kontruktioner","PE",60,0]
["Sand- og fedtfang, Mek/EL","PE",20,0]
["Sand- og fedtfang, SRO","PE",10,0]
["Forklaring, Konstruktioner","PE",60,0]
["Forklaring, Mek/EL","PE",20,0]
["Forklaring, SRO","PE",10,0]
["Beluftningstanke, Konstruktioner","PE",60,0]
["Beluftningstanke, Mek/EL","PE",20,0]
["Beluftningstanke, SRO","PE",10,0]
["Efterklaringstanke, Konstruktioner","PE",60,0]
["Efterklaringstanke, Mek/El","PE",20,0]
["Efterklaringstanke, SRO","PE",10,0]
["Efterbehandlingsanlæg (sandfilter), Konstruktioner","PE",60,0]
["Efterbehandlingsanlæg (sandfilter), Mek/EL","PE",20,0]
["Efterbehandlingsanlæg (sandfilter), SRO","PE",10,0]
["Renseanlæg >= 5.000 PE, Slambehandling"]
["Forafvanding, slam, Konstruktion","PE",60,0]
["Forafvanding, slam, Mek/EL","PE",20,0]
["Forafvanding, slam, SRO","PE",10,0]
["Rådnetanke, slam, Konstruktioner","PE",60,0]
["Rådnetanke, slam, Mek/EL","PE",20,0]
["Rådnetanke, slam, SRO","PE",10,0]
["Gasdisponering, Konstruktioner","PE",60,0]
["Gasdisponering, Mek/EL","PE",20,0]
["Gasdisponering, SRO","PE",10,0]
["Gasdisponering - elproduktionsanlæg, Konstruktioner","PE",60,0]
["Gasdisponering - elproduktionsanlæg, Mek/EL","PE",20,0]
["Gasdisponering - elproduktionsanlæg, SRO","PE",10,0]
["Slutafvanding, slam - lavteknologisk (slambede), Konstruktioner","PE",60,0]
["Slutafvanding, slam - lavteknologisk (slambede), Mek/EL","PE",20,0]
["Slutafvanding, slam - lavteknologisk (slambede), SRO","PE",10,0]
["Slutafvanding, slam - højteknologisk (centrifuger), Konstruktioner","PE",60,0]
["Slutafvanding, slam - højteknologisk (centrifuger), Mek/El","PE",20,0]
["Slutafvanding, slam - højteknologisk (centrifuger), SRO","PE",10,0]
["Renseanlæg >= 5.000 PE, Slamdisponering"]
["Slutdisponering, slam - lavteknologisk (slammineralisering), Konstruktioner","PE",60,0]
["Slutdisponering, slam - lavteknologisk (slammineralisering), Mek/EL","PE",20,0]
["Slutdisponering, slam - lavteknologisk (slammineralisering), SRO","PE",10,0]
["Slutdisponering, slam - højteknologisk (slamtørring), Konstruktioner","PE",60,0]
["Slutdisponering, slam - højteknologisk (slamtørring), Mek/EL","PE",20,0]
["Slutdisponering, slam - højteknologisk (slamtørring), SRO","PE",10,0]
["Slutdisponering, slam - højteknologisk (slamtørring og -forbrænding), Konstruktioner","PE",60,0]
["Slutdisponering, slam - højteknologisk (slamtørring og -forbrænding), Mek/EL","PE",20,0]
["Slutdisponering, slam - højteknologisk (slamtørring og -forbrænding), SRO","PE",10,0]
["Renseanlæg 36"]
["Mindre renseanlæg"]
["Mindre renseanlæg < 5.000 PE uden mulighed for opdeling","PE",40,0]
["Renseanlæg >= 5.000 PE, Vandbehandling"]
["Indløb med riste, Konstruktioner","PE",60,0]
["Indløb med riste, Mek/EL","PE",20,0]
["Indløb med riste, SRO","PE",10,0]
["Sand- og fedtfang, Kontruktioner","PE",60,0]
["Sand- og fedtfang, Mek/EL","PE",20,0]
["Sand- og fedtfang, SRO","PE",10,0]
["Forklaring, Konstruktioner","PE",60,0]
["Forklaring, Mek/EL","PE",20,0]
["Forklaring, SRO","PE",10,0]
["Beluftningstanke, Konstruktioner","PE",60,0]
["Beluftningstanke, Mek/EL","PE",20,0]
["Beluftningstanke, SRO","PE",10,0]
["Efterklaringstanke, Konstruktioner","PE",60,0]
["Efterklaringstanke, Mek/El","PE",20,0]
["Efterklaringstanke, SRO","PE",10,0]
["Efterbehandlingsanlæg (sandfilter), Konstruktioner","PE",60,0]
["Efterbehandlingsanlæg (sandfilter), Mek/EL","PE",20,0]
["Efterbehandlingsanlæg (sandfilter), SRO","PE",10,0]
["Renseanlæg >= 5.000 PE, Slambehandling"]
["Forafvanding, slam, Konstruktion","PE",60,0]
["Forafvanding, slam, Mek/EL","PE",20,0]
["Forafvanding, slam, SRO","PE",10,0]
["Rådnetanke, slam, Konstruktioner","PE",60,0]
["Rådnetanke, slam, Mek/EL","PE",20,0]
["Rådnetanke, slam, SRO","PE",10,0]
["Gasdisponering, Konstruktioner","PE",60,0]
["Gasdisponering, Mek/EL","PE",20,0]
["Gasdisponering, SRO","PE",10,0]
["Gasdisponering - elproduktionsanlæg, Konstruktioner","PE",60,0]
["Gasdisponering - elproduktionsanlæg, Mek/EL","PE",20,0]
["Gasdisponering - elproduktionsanlæg, SRO","PE",10,0]
["Slutafvanding, slam - lavteknologisk (slambede), Konstruktioner","PE",60,0]
["Slutafvanding, slam - lavteknologisk (slambede), Mek/EL","PE",20,0]
["Slutafvanding, slam - lavteknologisk (slambede), SRO","PE",10,0]
["Slutafvanding, slam - højteknologisk (centrifuger), Konstruktioner","PE",60,0]
["Slutafvanding, slam - højteknologisk (centrifuger), Mek/El","PE",20,0]
["Slutafvanding, slam - højteknologisk (centrifuger), SRO","PE",10,0]
["Renseanlæg >= 5.000 PE, Slamdisponering"]
["Slutdisponering, slam - lavteknologisk (slammineralisering), Konstruktioner","PE",60,0]
["Slutdisponering, slam - lavteknologisk (slammineralisering), Mek/EL","PE",20,0]
["Slutdisponering, slam - lavteknologisk (slammineralisering), SRO","PE",10,0]
["Slutdisponering, slam - højteknologisk (slamtørring), Konstruktioner","PE",60,0]
["Slutdisponering, slam - højteknologisk (slamtørring), Mek/EL","PE",20,0]
["Slutdisponering, slam - højteknologisk (slamtørring), SRO","PE",10,0]
["Slutdisponering, slam - højteknologisk (slamtørring og -forbrænding), Konstruktioner","PE",60,0]
["Slutdisponering, slam - højteknologisk (slamtørring og -forbrænding), Mek/EL","PE",20,0]
["Slutdisponering, slam - højteknologisk (slamtørring og -forbrænding), SRO","PE",10,0]

{"sheet":"Distributionsanlæg","index":1,"n_rows":322,"n_cols":6,"rows_kept":322,"cut":false,"hidden":false,"merged":[[0,5,1,5],[0,0,1,0],[0,1,1,1],[0,2,1,2],[0,3,1,3],[0,4,1,4]]}
["Distributionsanlæg","Enhed","Standard-levetid","Samlet mængde per 31/12-2014","Samlet mængde per 31/12-2015","Bemærk-ninger"]
[]
["Ledningsnet - Land"]
["Ledningsnet ≤ Ø 200 mm ","meter",75,{"$f":"337308.546416+91500","v":428808.546416},429009,"+91500+200"]
["Ø 200 mm < Ledningsnet ≤ Ø 500 mm ","meter",75,{"$f":"41092.21723+6000","v":47092.217230000002},47892,"+6000+800"]
["Ø 500 mm < Ledningsnet ≤ Ø 800 mm","meter",75,{"$f":"4473.89172+500","v":4973.8917199999996},5150,"+500"]
["Ø 800 mm < Ledningsnet ≤ Ø 1000 mm","meter",75,501.15938999999997,530]
["Ø 1000 mm < Ledningsnet ≤ Ø 1200 mm","meter",75,232.59955200000002,233]
["Ø 1200 mm < Ledningsnet ≤ Ø 1600 mm","meter",75,0]
["Ledningsnet > Ø 1600 mm (rørbassiner og transportledninger)","meter",75,0]
["Strømpeforing ≤ Ø 200 mm","meter",50,2040.8464989999998,2041]
["Strømpeforing Ø 200 mm < Ledningsnet ≤ Ø 500 mm","meter",50,0]
["Strømpeforing Ø 500 mm < Ledningsnet ≤ Ø 800 mm","meter",50,0]
["Strømpeforing Ø 800 mm < Ledningsnet ≤ Ø 1000 mm","meter",50,0]
["Strømpeforing Ø 1000 mm < Ledningsnet ≤ Ø 1200 mm","meter",50,0]
["Strømpeforing Ø 1200 mm < Ledningsnet ≤ Ø 1600 mm","meter",50,0]
["Ledningsnet - By",null,null,0]
["Ledningsnet ≤ Ø 200 mm ","meter",75,223905.69522700005,223975]
["Ø 200 mm < Ledningsnet ≤ Ø 500 mm ","meter",75,{"$f":"106016.645304-800","v":105216.64530400001},105230,"-800"]
["Ø 500 mm < Ledningsnet ≤ Ø 800 mm","meter",75,{"$f":"16580.2002+800","v":17380.200199999999},17380.200199999999,"+800"]
["Ø 800 mm < Ledningsnet ≤ Ø 1000 mm","meter",75,2133.2371269999999,2133.2371269999999]
["Ø 1000 mm < Ledningsnet ≤ Ø 1200 mm","meter",75,356.03223400000002,356.03223400000002]
["Ø 1200 mm < Ledningsnet ≤ Ø 1600 mm","meter",75,0,0]
["Ledningsnet > Ø 1600 mm (rørbassiner og transportledninger)","meter",75,0,0]
["Strømpeforing ≤ Ø 200 mm","meter",50,2257.1359690000004,2557,"0+300"]
["Strømpeforing Ø 200 mm < Ledningsnet ≤ Ø 500 mm","meter",50,0,1200,"0+1200"]
["Strømpeforing Ø 500 mm < Ledningsnet ≤ Ø 800 mm","meter",50,0]
["Strømpeforing Ø 800 mm < Ledningsnet ≤ Ø 1000 mm","meter",50,0]
["Strømpeforing Ø 1000 mm < Ledningsnet ≤ Ø 1200 mm","meter",50,0]
["Strømpeforing Ø 1200 mm < Ledningsnet ≤ Ø 1600 mm","meter",50,{"$f":"0+1100","v":1100},1100,"+1100"]
["Ledningsnet - City",null,null,0]
["Ledningsnet ≤ Ø 200 mm ","meter",75,0]
["Ø 200 mm < Ledningsnet ≤ Ø 500 mm ","meter",75,0]
["Ø 500 mm < Ledningsnet ≤ Ø 800 mm","meter",75,0]
["Ø 800 mm < Ledningsnet ≤ Ø 1000 mm","meter",75,0]
["Ø 1000 mm < Ledningsnet ≤ Ø 1200 mm","meter",75,0]
["Ø 1200 mm < Ledningsnet ≤ Ø 1600 mm","meter",75,0]
["Ledningsnet > Ø 1600 mm (rørbassiner og transportledninger)","meter",75,0]
["Strømpeforing ≤ Ø 200 mm","meter",50,0]
["Strømpeforing Ø 200 mm < Ledningsnet ≤ Ø 500 mm","meter",50,0]
["Strømpeforing Ø 500 mm < Ledningsnet ≤ Ø 800 mm","meter",50,0]
["Strømpeforing Ø 800 mm < Ledningsnet ≤ Ø 1000 mm","meter",50,0]
["Strømpeforing Ø 1000 mm < Ledningsnet ≤ Ø 1200 mm","meter",50,0]
["Strømpeforing Ø 1200 mm < Ledningsnet ≤ Ø 1600 mm","meter",50,0]
["Ledningsnet - Indre city",null,null,0]
["Ledningsnet ≤ Ø 200 mm ","meter",75,0]
["Ø 200 mm < Ledningsnet ≤ Ø 500 mm ","meter",75,0]
["Ø 500 mm < Ledningsnet ≤ Ø 800 mm","meter",75,0]
["Ø 800 mm < Ledningsnet ≤ Ø 1000 mm","meter",75,0]
["Ø 1000 mm < Ledningsnet ≤ Ø 1200 mm","meter",75,0]
["Ø 1200 mm < Ledningsnet ≤ Ø 1600 mm","meter",75,0]
["Ledningsnet > Ø 1600 mm (rørbassiner og transportledninger)","meter",75,0]
["Strømpeforing ≤ Ø 200 mm","meter",50,0]
["Strømpeforing Ø 200 mm < Ledningsnet ≤ Ø 500 mm","meter",50,0]
["Strømpeforing Ø 500 mm < Ledningsnet ≤ Ø 800 mm","meter",50,0]
["Strømpeforing Ø 800 mm < Ledningsnet ≤ Ø 1000 mm","meter",50,0]
["Strømpeforing Ø 1000 mm < Ledningsnet ≤ Ø 1200 mm","meter",50,0]
["Strømpeforing Ø 1200 mm < Ledningsnet ≤ Ø 1600 mm","meter",50,0]
["Brønde og stik, ledningsnet - Land",null,null,0]
["Brønde","stk.",75,8743,8763,"0+20"]
["Stik","stk.",75,19038,19058,"0+20"]
["Brønde og stik, ledningsnet - By",null,null,0]
["Brønde","stk.",75,9066,9086,"0+20"]
["Stik","stk.",75,16300,16320,"0+20"]
["Brønde og stik, ledningsnet - City",null,null,0]
["Brønde","stk.",75,0]
["Stik","stk.",75,0]
["Brønde og stik, ledningsnet - Indre city",null,null,0]
["Brønde","stk.",75,0]
["Stik","stk.",75,0]
["Små pumpestationer inkl. SRO-anlæg - Land",null,null,0]
["Tryksatte minipumpestationer (husstandssystemer)","stk.",30,{"$f":"150+960","v":1110},1110,"+960"]
["Pumpestationer i brønde (< 6,25 m2), Konstruktioner","stk.",50,{"$f":"179+40","v":219},219,"+40"]
["Pumpestationer i brønde (< 6,25 m2), Mek/EL","stk.",20,{"$f":"305+40","v":345},345,"+40"]
["Pumpestationer i brønde (< 6,25 m2), SRO","stk.",10,{"$f":"305+40","v":345},345,"+40"]
["Pumpestationer m. overbygning (< 20 m2), Konstruktioner","stk.",50,0]
["Pumpestationer m. overbygning (< 20 m2), Mek/EL","stk.",20,0]
["Pumpestationer m. overbygning (< 20 m2), SRO","stk.",10,0]
["Pumpestationer i underjordiske bygværker (<50 m2), Konstruktioner","stk.",50,0]
["Pumpestationer i underjordiske bygværker (<50 m2), Mek/El","stk.",20,0]
["Pumpestationer i underjordiske bygværker (<50 m2), SRO","stk.",10,0]
["Små pumpestationer inkl. SRO-anlæg - By",null,null,0]
["Tryksatte minipumpestationer (husstandssystemer)","stk.",30,0]
["Pumpestationer i brønde (< 6,25 m2), Konstruktioner","stk.",50,89,89]
["Pumpestationer i brønde (< 6,25 m2), Mek/EL","stk.",20,154,154]
["Pumpestationer i brønde (< 6,25 m2), SRO","stk.",10,154,154]
["Pumpestationer m. overbygning (< 20 m2), Konstruktioner","stk.",50,3,3]
["Pumpestationer m. overbygning (< 20 m2), Mek/EL","stk.",20,6,6]
["Pumpestationer m. overbygning (< 20 m2), SRO","stk.",10,6,6]
["Pumpestationer i underjordiske bygværker (<50 m2), Konstruktioner","stk.",50,1,1]
["Pumpestationer i underjordiske bygværker (<50 m2), Mek/El","stk.",20,2,2]
["Pumpestationer i underjordiske bygværker (<50 m2), SRO","stk.",10,2,2]
["Små pumpestationer inkl. SRO-anlæg - City",null,null,0]
["Tryksatte minipumpestationer (husstandssystemer)","stk.",30,0]
["Pumpestationer i brønde (< 6,25 m2), Konstruktioner","stk.",50,0]
["Pumpestationer i brønde (< 6,25 m2), Mek/EL","stk.",20,0]
["Pumpestationer i brønde (< 6,25 m2), SRO","stk.",10,0]
["Pumpestationer m. overbygning (< 20 m2), Konstruktioner","stk.",50,0]
["Pumpestationer m. overbygning (< 20 m2), Mek/EL","stk.",20,0]
["Pumpestationer m. overbygning (< 20 m2), SRO","stk.",10,0]
["Pumpestationer i underjordiske bygværker (<50 m2), Konstruktioner","stk.",50,0]
["Pumpestationer i underjordiske bygværker (<50 m2), Mek/El","stk.",20,0]
["Pumpestationer i underjordiske bygværker (<50 m2), SRO","stk.",10,0]
["Små pumpestationer inkl. SRO-anlæg - Indre city",null,null,0]
["Tryksatte minipumpestationer (husstandssystemer)","stk.",30,0]
["Pumpestationer i brønde (< 6,25 m2), Konstruktioner","stk.",50,0]
["Pumpestationer i brønde (< 6,25 m2), Mek/EL","stk.",20,0]
["Pumpestationer i brønde (< 6,25 m2), SRO","stk.",10,0]
["Pumpestationer m. overbygning (< 20 m2), Konstruktioner","stk.",50,0]
["Pumpestationer m. overbygning (< 20 m2), Mek/EL","stk.",20,0]
["Pumpestationer m. overbygning (< 20 m2), SRO","stk.",10,0]
["Pumpestationer i underjordiske bygværker (<50 m2), Konstruktioner","stk.",50,0]
["Pumpestationer i underjordiske bygværker (<50 m2), Mek/El","stk.",20,0]
["Pumpestationer i underjordiske bygværker (<50 m2), SRO","stk.",10,0]
["Store pumpestationer: inkl. SRO-anlæg - Land",null,null,0]
["Kælder","m2",75,0]
["Pumpeinstallation Miljøklasse A (100-300 l/s) - Mek/EL","stk.",20,0]
["Pumpeinstallation Miljøklasse A (100-300 l/s) - SRO","stk.",10,0]
["Pumpeinstallation Miljøklasse A (300-600 l/s) - Mek/EL","stk.",20,0]
["Pumpeinstallation Miljøklasse A (300-600 l/s) - SRO","stk.",10,0]
["Pumpeinstallation Miljøklasse A (600-1.000 l/s) - Mek/EL","stk.",20,0]
["Pumpeinstallation Miljøklasse A (600-1.000 l/s) - SRO","stk.",10,0]
["Pumpeinstallation Miljøklasse A (1.000-1.500 l/s) - Mek/EL","stk.",20,0]
["Pumpeinstallation Miljøklasse A (1.000-1.500 l/s) - SRO","stk.",10,0]
["Pumpeinstallation Miljøklasse B (100-300 l/s) - Mek/EL","stk.",20,0]
["Pumpeinstallation Miljøklasse B (100-300 l/s) - SRO","stk.",10,0]
["Pumpeinstallation Miljøklasse B (300-600 l/s) - Mek/EL","stk.",20,0]
["Pumpeinstallation Miljøklasse B (300-600 l/s) - SRO","stk.",10,0]
["Pumpeinstallation Miljøklasse B (600-1.000 l/s) - Mek/EL","stk.",20,0]
["Pumpeinstallation Miljøklasse B (600-1.000 l/s) - SRO","stk.",10,0]
["Pumpeinstallation Miljøklasse B (1.000-1.500 l/s) - Mek/EL","stk.",20,0]
["Pumpeinstallation Miljøklasse B (1.000-1.500 l/s) - SRO","stk.",10,0]
["Overbygning","m2",75,0]
["Store pumpestationer: inkl. SRO-anlæg - By",null,null,0]
["Kælder","m2",75,0]
["Pumpeinstallation Miljøklasse A (100-300 l/s) - Mek/EL","stk.",20,0]
["Pumpeinstallation Miljøklasse A (100-300 l/s) - SRO","stk.",10,0]
["Pumpeinstallation Miljøklasse A (300-600 l/s) - Mek/EL","stk.",20,0]
["Pumpeinstallation Miljøklasse A (300-600 l/s) - SRO","stk.",10,0]
["Pumpeinstallation Miljøklasse A (600-1.000 l/s) - Mek/EL","stk.",20,0]
["Pumpeinstallation Miljøklasse A (600-1.000 l/s) - SRO","stk.",10,0]
["Pumpeinstallation Miljøklasse A (1.000-1.500 l/s) - Mek/EL","stk.",20,0]
["Pumpeinstallation Miljøklasse A (1.000-1.500 l/s) - SRO","stk.",10,0]
["Pumpeinstallation Miljøklasse B (100-300 l/s) - Mek/EL","stk.",20,0]
["Pumpeinstallation Miljøklasse B (100-300 l/s) - SRO","stk.",10,0]
["Pumpeinstallation Miljøklasse B (300-600 l/s) - Mek/EL","stk.",20,0]
["Pumpeinstallation Miljøklasse B (300-600 l/s) - SRO","stk.",10,0]
["Pumpeinstallation Miljøklasse B (600-1.000 l/s) - Mek/EL","stk.",20,0]
["Pumpeinstallation Miljøklasse B (600-1.000 l/s) - SRO","stk.",10,0]
["Pumpeinstallation Miljøklasse B (1.000-1.500 l/s) - Mek/EL","stk.",20,0]
["Pumpeinstallation Miljøklasse B (1.000-1.500 l/s) - SRO","stk.",10,0]
["Overbygning ","m2",75,0]
["Store pumpestationer: inkl. SRO-anlæg - City",null,null,0]
["Kælder","m2",75,0]
["Pumpeinstallation Miljøklasse A (100-300 l/s) - Mek/EL","stk.",20,0]
["Pumpeinstallation Miljøklasse A (100-300 l/s) - SRO","stk.",10,0]
["Pumpeinstallation Miljøklasse A (300-600 l/s) - Mek/EL","stk.",20,0]
["Pumpeinstallation Miljøklasse A (300-600 l/s) - SRO","stk.",10,0]
["Pumpeinstallation Miljøklasse A (600-1.000 l/s) - Mek/EL","stk.",20,0]
["Pumpeinstallation Miljøklasse A (600-1.000 l/s) - SRO","stk.",10,0]
["Pumpeinstallation Miljøklasse A (1.000-1.500 l/s) - Mek/EL","stk.",20,0]
["Pumpeinstallation Miljøklasse A (1.000-1.500 l/s) - SRO","stk.",10,0]
["Pumpeinstallation Miljøklasse B (100-300 l/s) - Mek/EL","stk.",20,0]
["Pumpeinstallation Miljøklasse B (100-300 l/s) - SRO","stk.",10,0]
["Pumpeinstallation Miljøklasse B (300-600 l/s) - Mek/EL","stk.",20,0]
["Pumpeinstallation Miljøklasse B (300-600 l/s) - SRO","stk.",10,0]
["Pumpeinstallation Miljøklasse B (600-1.000 l/s) - Mek/EL","stk.",20,0]
["Pumpeinstallation Miljøklasse B (600-1.000 l/s) - SRO","stk.",10,0]
["Pumpeinstallation Miljøklasse B (1.000-1.500 l/s) - Mek/EL","stk.",20,0]
["Pumpeinstallation Miljøklasse B (1.000-1.500 l/s) - SRO","stk.",10,0]
["Overbygning ","m2",75,0]
["Store pumpestationer: inkl. SRO-anlæg - Indre city",null,null,0]
["Kælder","m2",75,0]
["Pumpeinstallation Miljøklasse A (100-300 l/s) - Mek/EL","stk.",20,0]
["Pumpeinstallation Miljøklasse A (100-300 l/s) - SRO","stk.",10,0]
["Pumpeinstallation Miljøklasse A (300-600 l/s) - Mek/EL","stk.",20,0]
["Pumpeinstallation Miljøklasse A (300-600 l/s) - SRO","stk.",10,0]
["Pumpeinstallation Miljøklasse A (600-1.000 l/s) - Mek/EL","stk.",20,0]
["Pumpeinstallation Miljøklasse A (600-1.000 l/s) - SRO","stk.",10,0]
["Pumpeinstallation Miljøklasse A (1.000-1.500 l/s) - Mek/EL","stk.",20,0]
["Pumpeinstallation Miljøklasse A (1.000-1.500 l/s) - SRO","stk.",10,0]
["Pumpeinstallation Miljøklasse B (100-300 l/s) - Mek/EL","stk.",20,0]
["Pumpeinstallation Miljøklasse B (100-300 l/s) - SRO","stk.",10,0]
["Pumpeinstallation Miljøklasse B (300-600 l/s) - Mek/EL","stk.",20,0]
["Pumpeinstallation Miljøklasse B (300-600 l/s) - SRO","stk.",10,0]
["Pumpeinstallation Miljøklasse B (600-1.000 l/s) - Mek/EL","stk.",20,0]
["Pumpeinstallation Miljøklasse B (600-1.000 l/s) - SRO","stk.",10,0]
["Pumpeinstallation Miljøklasse B (1.000-1.500 l/s) - Mek/EL","stk.",20,0]
["Pumpeinstallation Miljøklasse B (1.000-1.500 l/s) - SRO","stk.",10,0]
["Overbygning","m2",75,0]
["Overløbsbygværker - Land",null,null,0]
["Kælder (< 7 m2) ","stk.",75,0]
["Kælder (7 - 20 m2) ","m2",75,0]
["Kælder (20 - 30 m2)","m2",75,0]
["Installationer \"ingen eller faste riste\" (mindre end 7 m2)","stk.",20,0]
["Installationer \"mekaniske riste og SRO\" Miljøklasse A. (7-20 m2) - Mek/EL","stk.",20,0]
["Installationer \"mekaniske riste og SRO\" Miljøklasse A. (7-20 m2) - SRO","stk.",10,0]
["Installationer \"mekaniske riste og SRO\" Miljøklasse A. (20-30 m2) - Mek/EL","stk.",20,0]
["Installationer \"mekaniske riste og SRO\" Miljøklasse A. (20-30 m2) - SRO","stk.",10,0]
["Installationer \"mekaniske riste og SRO\" Miljøklasse B. (7-20 m2) - Mek/EL","stk.",20,0]
["Installationer \"mekaniske riste og SRO\" Miljøklasse B. (7-20 m2) - SRO","stk.",10,0]
["Installationer \"mekaniske riste og SRO\" Miljøklasse B. (20-30 m2) - Mek/EL","stk.",20,0]
["Installationer \"mekaniske riste og SRO\" Miljøklasse B. (20-30 m2) - SRO","stk.",10,0]
["Overbygning","stk.",75,0]
["Overløbsbygværker - By",null,null,0]
["Kælder (< 7 m2) ","stk.",75,23,23]
["Kælder (7 - 20 m2) ","m2",75,220,220]
["Kælder (20 - 30 m2)","m2",75,0]
["Installationer \"ingen eller faste riste\" (mindre end 7 m2)","stk.",20,20,20]
["Installationer \"mekaniske riste og SRO\" Miljøklasse A. (7-20 m2) - Mek/EL","stk.",20,5,5]
["Installationer \"mekaniske riste og SRO\" Miljøklasse A. (7-20 m2) - SRO","stk.",10,5,5]
["Installationer \"mekaniske riste og SRO\" Miljøklasse A. (20-30 m2) - Mek/EL","stk.",20,0]
["Installationer \"mekaniske riste og SRO\" Miljøklasse A. (20-30 m2) - SRO","stk.",10,0]
["Installationer \"mekaniske riste og SRO\" Miljøklasse B. (7-20 m2) - Mek/EL","stk.",20,0]
["Installationer \"mekaniske riste og SRO\" Miljøklasse B. (7-20 m2) - SRO","stk.",10,0]
["Installationer \"mekaniske riste og SRO\" Miljøklasse B. (20-30 m2) - Mek/EL","stk.",20,0]
["Installationer \"mekaniske riste og SRO\" Miljøklasse B. (20-30 m2) - SRO","stk.",10,0]
["Overbygning","stk.",75,0]
["Overløbsbygværker - City",null,null,0]
["Kælder (< 7 m2) ","stk.",75,0]
["Kælder (7 - 20 m2) ","m2",75,0]
["Kælder (20 - 30 m2)","m2",75,0]
["Installationer \"ingen eller faste riste\" (mindre end 7 m2)","stk.",20,0]
["Installationer \"mekaniske riste og SRO\" Miljøklasse A. (7-20 m2) - Mek/EL","stk.",20,0]
["Installationer \"mekaniske riste og SRO\" Miljøklasse A. (7-20 m2) - SRO","stk.",10,0]
["Installationer \"mekaniske riste og SRO\" Miljøklasse A. (20-30 m2) - Mek/EL","stk.",20,0]
["Installationer \"mekaniske riste og SRO\" Miljøklasse A. (20-30 m2) - SRO","stk.",10,0]
["Installationer \"mekaniske riste og SRO\" Miljøklasse B. (7-20 m2) - Mek/EL","stk.",20,0]
["Installationer \"mekaniske riste og SRO\" Miljøklasse B. (7-20 m2) - SRO","stk.",10,0]
["Installationer \"mekaniske riste og SRO\" Miljøklasse B. (20-30 m2) - Mek/EL","stk.",20,0]
["Installationer \"mekaniske riste og SRO\" Miljøklasse B. (20-30 m2) - SRO","stk.",10,0]
["Overbygning (efter beliggenhed) ","stk.",75,0]
["Overløbsbygværker - Indre city",null,null,0]
["Kælder (< 7 m2) ","stk.",75,0]
["Kælder (7 - 20 m2) ","m2",75,0]
["Kælder (20 - 30 m2)","m2",75,0]
["Installationer \"ingen eller faste riste\" (mindre end 7 m2)","stk.",20,0]
["Installationer \"mekaniske riste og SRO\" Miljøklasse A. (7-20 m2) - Mek/EL","stk.",20,0]
["Installationer \"mekaniske riste og SRO\" Miljøklasse A. (7-20 m2) - SRO","stk.",10,0]
["Installationer \"mekaniske riste og SRO\" Miljøklasse A. (20-30 m2) - Mek/EL","stk.",20,0]
["Installationer \"mekaniske riste og SRO\" Miljøklasse A. (20-30 m2) - SRO","stk.",10,0]
["Installationer \"mekaniske riste og SRO\" Miljøklasse B. (7-20 m2) - Mek/EL","stk.",20,0]
["Installationer \"mekaniske riste og SRO\" Miljøklasse B. (7-20 m2) - SRO","stk.",10,0]
["Installationer \"mekaniske riste og SRO\" Miljøklasse B. (20-30 m2) - Mek/EL","stk.",20,0]
["Installationer \"mekaniske riste og SRO\" Miljøklasse B. (20-30 m2) - SRO","stk.",10,0]
["Overbygning","stk.",75,0]
["Forsinkelsesbassiner - Land",null,null,0]
["Forsinkelsesbassiner, lukkede uden automatisk rensning og SRO Miljøklasse B (mindre end 1.000 m3)","m³",50,0]
["Forsinkelsesbassiner, lukkede med automatisk rensning og SRO Miljøklasse A (500-1.000 m3) - Konstruktioner","m³",75,{"$f":"0+850","v":850},850,"+850"]
["Forsinkelsesbassiner, lukkede med automatisk rensning og SRO Miljøklasse A (500-1.000 m3) - Mek/EL","m³",20,{"$f":"0+850","v":850},850,"+850"]
["Forsinkelsesbassiner, lukkede med automatisk rensning og SRO Miljøklasse A (500-1.000 m3) - SRO ","m³",10,850,850,"+850"]
["Forsinkelsesbassiner, lukkede med automatisk rensning og SRO Miljøklasse A (1.000-3.000 m3) - Konstruktioner","m³",75,0]
["Forsinkelsesbassiner, lukkede med automatisk rensning og SRO Miljøklasse A (1.000-3.000 m3) - Mek/EL","m³",20,0]
["Forsinkelsesbassiner, lukkede med automatisk rensning og SRO Miljøklasse A (1.000-3.000 m3) - SRO","m³",10,0]
["Forsinkelsesbassiner, lukkede med automatisk rensning og SRO Miljøklasse A (5.000-10.000 m3) - Konstruktionre","m³",75,0]
["Forsinkelsesbassiner, lukkede med automatisk rensning og SRO Miljøklasse A (5.000-10.000 m3) - Mek/EL","m³",20,0]
["Forsinkelsesbassiner, lukkede med automatisk rensning og SRO Miljøklasse A (5.000-10.000 m3) - SRO","m³",10,0]
["Forsinkelsesbassiner, lukkede med automatisk rensning og SRO Miljøklasse A (større end 10.000 m3) - Konstruktioner","m³",75,0]
["Forsinkelsesbassiner, lukkede med automatisk rensning og SRO Miljøklasse A (større end 10.000 m3) - Mek/EL","m³",20,0]
["Forsinkelsesbassiner, lukkede med automatisk rensning og SRO Miljøklasse A (større end 10.000 m3) - SRO","m³",10,0]
["Forsinkelsesbassiner - By",null,null,0]
["Forsinkelsesbassiner, lukkede uden automatisk rensning og SRO Miljøklasse B (mindre end 1.000 m3)","m³",50,{"$f":"1562+100+500","v":2162},2162,"+100+500"]
["Forsinkelsesbassiner, lukkede med automatisk rensning og SRO Miljøklasse A (500-1.000 m3) - Konstruktioner","m³",75,3870,3870]
["Forsinkelsesbassiner, lukkede med automatisk rensning og SRO Miljøklasse A (500-1.000 m3) - Mek/EL","m³",20,3870,3870]
["Forsinkelsesbassiner, lukkede med automatisk rensning og SRO Miljøklasse A (500-1.000 m3) - SRO ","m³",10,3870,3870]
["Forsinkelsesbassiner, lukkede med automatisk rensning og SRO Miljøklasse A (1.000-3.000 m3) - Konstruktioner","m³",75,5400,5400]
["Forsinkelsesbassiner, lukkede med automatisk rensning og SRO Miljøklasse A (1.000-3.000 m3) - Mek/EL","m³",20,5400,5400]
["Forsinkelsesbassiner, lukkede med automatisk rensning og SRO Miljøklasse A (1.000-3.000 m3) - SRO","m³",10,5400,5400]
["Forsinkelsesbassiner, lukkede med automatisk rensning og SRO Miljøklasse A (5.000-10.000 m3) - Konstruktionre","m³",75,0]
["Forsinkelsesbassiner, lukkede med automatisk rensning og SRO Miljøklasse A (5.000-10.000 m3) - Mek/EL","m³",20,0]
["Forsinkelsesbassiner, lukkede med automatisk rensning og SRO Miljøklasse A (5.000-10.000 m3) - SRO","m³",10,0]
["Forsinkelsesbassiner, lukkede med automatisk rensning og SRO Miljøklasse A (større end 10.000 m3) - Konstruktioner","m³",75,0]
["Forsinkelsesbassiner, lukkede med automatisk rensning og SRO Miljøklasse A (større end 10.000 m3) - Mek/EL","m³",20,0]
["Forsinkelsesbassiner, lukkede med automatisk rensning og SRO Miljøklasse A (større end 10.000 m3) - SRO","m³",10,0]
["Forsinkelsesbassiner - City",null,null,0]
["Forsinkelsesbassiner, lukkede uden automatisk rensning og SRO Miljøklasse B (mindre end 1.000 m3)","m³",50,0]
["Forsinkelsesbassiner, lukkede med automatisk rensning og SRO Miljøklasse A (500-1.000 m3) - Konstruktioner","m³",75,0]
["Forsinkelsesbassiner, lukkede med automatisk rensning og SRO Miljøklasse A (500-1.000 m3) - Mek/EL","m³",20,0]
["Forsinkelsesbassiner, lukkede med automatisk rensning og SRO Miljøklasse A (500-1.000 m3) - SRO ","m³",10,0]
["Forsinkelsesbassiner, lukkede med automatisk rensning og SRO Miljøklasse A (1.000-3.000 m3) - Konstruktioner","m³",75,0]
["Forsinkelsesbassiner, lukkede med automatisk rensning og SRO Miljøklasse A (1.000-3.000 m3) - Mek/EL","m³",20,0]
["Forsinkelsesbassiner, lukkede med automatisk rensning og SRO Miljøklasse A (1.000-3.000 m3) - SRO","m³",10,0]
["Forsinkelsesbassiner, lukkede med automatisk rensning og SRO Miljøklasse A (5.000-10.000 m3) - Konstruktionre","m³",75,0]
["Forsinkelsesbassiner, lukkede med automatisk rensning og SRO Miljøklasse A (5.000-10.000 m3) - Mek/EL","m³",20,0]
["Forsinkelsesbassiner, lukkede med automatisk rensning og SRO Miljøklasse A (5.000-10.000 m3) - SRO","m³",10,0]
["Forsinkelsesbassiner, lukkede med automatisk rensning og SRO Miljøklasse A (større end 10.000 m3) - Konstruktioner","m³",75,0]
["Forsinkelsesbassiner, lukkede med automatisk rensning og SRO Miljøklasse A (større end 10.000 m3) - Mek/EL","m³",20,0]
["Forsinkelsesbassiner, lukkede med automatisk rensning og SRO Miljøklasse A (større end 10.000 m3) - SRO","m³",10,0]
["Forsinkelsesbassiner - Indre city",null,null,0]
["Forsinkelsesbassiner, lukkede uden automatisk rensning og SRO Miljøklasse B (mindre end 1.000 m3)","m³",50,0]
["Forsinkelsesbassiner, lukkede med automatisk rensning og SRO Miljøklasse A (500-1.000 m3) - Konstruktioner","m³",75,0]
["Forsinkelsesbassiner, lukkede med automatisk rensning og SRO Miljøklasse A (500-1.000 m3) - Mek/EL","m³",20,0]
["Forsinkelsesbassiner, lukkede med automatisk rensning og SRO Miljøklasse A (500-1.000 m3) - SRO ","m³",10,0]
["Forsinkelsesbassiner, lukkede med automatisk rensning og SRO Miljøklasse A (1.000-3.000 m3) - Konstruktioner","m³",75,0]
["Forsinkelsesbassiner, lukkede med automatisk rensning og SRO Miljøklasse A (1.000-3.000 m3) - Mek/EL","m³",20,0]
["Forsinkelsesbassiner, lukkede med automatisk rensning og SRO Miljøklasse A (1.000-3.000 m3) - SRO","m³",10,0]
["Forsinkelsesbassiner, lukkede med automatisk rensning og SRO Miljøklasse A (5.000-10.000 m3) - Konstruktionre","m³",75,0]
["Forsinkelsesbassiner, lukkede med automatisk rensning og SRO Miljøklasse A (5.000-10.000 m3) - Mek/EL","m³",20,0]
["Forsinkelsesbassiner, lukkede med automatisk rensning og SRO Miljøklasse A (5.000-10.000 m3) - SRO","m³",10,0]
["Forsinkelsesbassiner, lukkede med automatisk rensning og SRO Miljøklasse A (større end 10.000 m3) - Konstruktioner","m³",75,0]
["Forsinkelsesbassiner, lukkede med automatisk rensning og SRO Miljøklasse A (større end 10.000 m3) - Mek/EL","m³",20,0]
["Forsinkelsesbassiner, lukkede med automatisk rensning og SRO Miljøklasse A (større end 10.000 m3) - SRO","m³",10,0]
["Sparebassin/laguner - Land",null,null,0]
["Jordbassin Klasse B","m³",50,20827,20827]
["Jordbassin Klasse A","m³",50,{"$f":"30620+300+800","v":31720},31720,"+300+800"]
["Indløb-/udløbsarrangement","stk.",75,{"$f":"98+2","v":100},100,"+2"]
["Andre bygninger (tekniske installationer, målere mv.)","m2",75,0]
["Sparebassin/laguner - By",null,null,0]
["Jordbassin Klasse B","m³",50,0]
["Jordbassin Klasse A","m³",50,{"$f":"0+2000+2500","v":4500},4500,"+2000+2500"]
["Indløb-/udløbsarrangement","stk.",75,{"$f":"0+2","v":2},2,"+2"]
["Andre bygninger (tekniske installationer, målere mv.)","m2",75,0]
["Sparebassin/laguner - City",null,null,0]
["Jordbassin Klasse B","m³",50,0]
["Jordbassin Klasse A","m³",50,0]
["Indløb-/udløbsarrangement","stk.",75,0]
["Andre bygninger (tekniske installationer, målere mv.)","m2",75,0]
["Sparebassin/laguner  - Indre city",null,null,0]
["Jordbassin Klasse B","m³",50,0]
["Jordbassin Klasse A","m³",50,0]
["Indløb-/udløbsarrangement","stk.",75,0]
["Andre bygninger (tekniske installationer, målere mv.)","m2",75,0]

{"sheet":"Fællesfunktionsanlæg","index":2,"n_rows":16,"n_cols":6,"rows_kept":16,"cut":false,"hidden":false,"merged":[[0,5,1,5],[0,0,1,0],[0,1,1,1],[0,2,1,2],[0,3,1,3],[0,4,1,4]]}
["Fællesfunktionsanlæg","Enhed","Standard-levetid","Samlet mængde per 31/12-2014","Samlet mængde per 31/12-2015","Bemærk-ninger"]
[]
[]
["Andre"]
["Administrationbygninger","m2",75,{"$f":"1119+100","v":1219},1219,"Ny administrationsbygning"]
["Arbejdsplads og kontor","stk.",5,20,20]
["Køretøjer, personbil","stk.",5,0,3]
["Køretøjer, små lastvogne (< 3.500 kg.)","stk.",5,0,4]
["Køretøjer, store lastvogne (> 3.500 kg.)","stk.",5,1,0]
["Køretøjer, entreprenørmaskiner","stk.",5,1,0]
["Slamsugere","stk.",5,0,2]
["Værksteder, garager","m2",75,435,435]
["Øvrige"]
["Solcelleanlæg","KWh",25,0,0]
["EDB, tablets og navigationsudstyr","stk.",5,0,5]
["Elektroniske kort","stk.",5,0,5]

{"sheet":"Drop downliste","index":3,"n_rows":13,"n_cols":11,"rows_kept":13,"cut":false,"hidden":true,"merged":[]}
[]
[null,"datakvalitet","Serviceselskab","Overheads","Infrastrukturomlægninger","Infrastruktur per år","år 1","år 2","år 3","år 4","år 5"]
[null,null,null,null,null,null,2010,2011,2012,2013,2014]
[null,1,"ja","Full-cost","ja",0.1]
[null,2,"nej","Direct-cost","nej",0.2]
[null,3,null,"Nøgletalsfordeling",null,0.3]
[null,null,null,"Activity based cost",null,0.4]
[null,null,null,"Andet",null,0.5]
[null,null,null,null,null,0.6]
[null,null,null,null,null,0.7]
[null,null,null,null,null,0.8]
[null,null,null,null,null,0.9]
[null,null,null,null,null,1]